Workbook

Sheet DADOS
A1: 27476 | B1: PO - Planilha Orçamentária / PLQ - Planilha de Levantamento de Quantidades / CFF - Cronograma Físico Financeiro
A2: v008
A4: INSTRUÇÕES DE USO E PREENCHIMENTO
A6: 1. Este documento somente pode ser utilizado nas versões do Excel 2003 ou superior. Não deve ser utilizado versões do BROffice. O Documento deve ser salvo SOMENTE em extensão habilitada para macros (.xls ou .xlsm). Se o documento for salvo na extensão .xlsx, o arquivo será INUTILIZADO.
A8: 2. Para funcionamento pleno desse arquivo, a Segurança de Macros do Excel deve ser habilitada.
A10: 2.1 Na Versão Excel 2003, selecione na Faixa de Opções: Ferramentas --> Macro --> Segurança --> Na aba Nível de Segurança selecione a Opção "Baixo" --> Clique em OK --> Feche e abra o Excel novamente para utilizar a Planilha.
A12: 2.2 Na Versão Excel 2007 ou superior, selecione na Faixa de Opções: Arquivo --> Opções --> Central de Confiabilidade --> Configurações da Central de Confiabilidade --> Configurações de Macro --> Habilitar todas as Macros --> Clique em OK --> Feche e abra o excel novamente para utilizar a Planilha.
A14: 3. O Preenchimento deve ser feito somente nas células em amarelo. As outras células são de preenchimento Automático.
A16: 4. Preferências de Elaboração do Orçamento
A18: 4.1. Preenchimento de Quantidades
A22: 5. Ordem de Preenchimento
A24: 5.1. na Aba DADOS
A26: 5.1.1. Preencha no Quadro abaixo os Dados do TC/CR:
A28: Nº OPERAÇÃO | C28: GESTOR | F28: PROGRAMA | J28: AÇÃO / MODALIDADE | P28: OBJETO
A29: 1069.924-72/2019 | C29: MDR (antigo Mcidades) | F29: Planejamento Urbano | J29: Apoio a Política Nacional de Desenvolvimento Urbano | P29: Pavimentação asfáltica em Vias Públicas
A31: PROPONENTE / TOMADOR | G31: MUNICÍPIO / UF | K31: LOCALIDADE / ENDEREÇO | Q31: APELIDO DO EMPREENDIMENTO
A32: Município de Veríssimo | G32: Veríssimo/MG | K32: Diversas trechos de ruas | Q32: Pavimentação asfáltica 2020-1
A35: 5.1.2. Preencha no quadro abaixo as informações sobre o orçamento:
A37: DATA BASE | C37: DESON. | D37: LOCALIDADE DO SINAPI | G37: DESCRIÇÃO DO LOTE | T37: BDI 1 | U37: BDI 2 | V37: BDI 3 | W37: BDI 4 | X37: BDI 5
A38: 2020-07-01 | C38: Sim | D38: Belo Horizonte / MG | G38: Pavimentação de Vias Públicas | T38: =IF(ISERROR(INDIRECT("'BDI ("&RIGHT(T37,1)&")'!N27")),"",INDIRECT("'BDI ("&RIGHT(T37,1)&")'!N27")) -> 0.2963 | U38: =IF(ISERROR(INDIRECT("'BDI ("&RIGHT(U37,1)&")'!N27")),"",INDIRECT("'BDI ("&RIGHT(U37,1)&")'!N27")) ->  | V38: =IF(ISERROR(INDIRECT("'BDI ("&RIGHT(V37,1)&")'!N27")),"",INDIRECT("'BDI ("&RIGHT(V37,1)&")'!N27")) ->  | W38: =IF(ISERROR(INDIRECT("'BDI ("&RIGHT(W37,1)&")'!N27")),"",INDIRECT("'BDI ("&RIGHT(W37,1)&")'!N27")) ->  | X38: =IF(ISERROR(INDIRECT("'BDI ("&RIGHT(X37,1)&")'!N27")),"",INDIRECT("'BDI ("&RIGHT(X37,1)&")'!N27")) -> 
A40: 4.1.2. Preencha no quadro abaixo as informações sobre o orçamento licitado:
A42: CTEF n.º | C42: NOME DA EMPRESA | H42: DATA BASE | J42: DESON. | K42: REGIME DE EXECUÇÃO | N42: ACOMP. | O42: OBJETO CTEF | U42: DATA ASSINATURA | W42: VIGÊNCIA
A45: 5.1.3. Preencha a data de Início da Obra:
A47: DATA INÍCIO
A48: 2020-08-01
A50: 5.1.4. Preencha no(s) Quadro(s) abaixo os Dados do(s) Responsável(is) Técnico(s) pela elaboração do Orçamento:
G52: Exibir o 2° Quadro de Assinatura? | K52: NÃO
A54: Nome: | B54: Luiz Carlos Furtado de Almeida | G54: Nome:
A55: =IF(OR(TipoOrçamento="BASE",TipoOrçamento="REPROGRAMADONPL"),"Título:","Cargo:") -> Título: | B55: Engenheiro Civil | G55: =A55 -> Título:
A56: =IF(OR(TipoOrçamento="BASE",TipoOrçamento="REPROGRAMADONPL"),"CREA/CAU:","Empresa:") -> CREA/CAU: | B56: MG-28492/D | G56: =A56 -> CREA/CAU:
A57: =IF(OR(TipoOrçamento="BASE",TipoOrçamento="REPROGRAMADONPL"),"ART/RRT:","CNPJ:") -> ART/RRT: | B57: 5881155 | G57: =A57 -> ART/RRT:
A60: 5.2. Legenda das Abas
A62: 5.2.1. LARANJA: Aba DADOS. Preenchimento Obrigatório. Impressão Dispensada.
A63: 5.2.2. AMARELO: Abas BDI, PO, PLQ e CFF. Preenchimento e Impressão Obrigatórias. O preenchimento da Aba BDI é dispensada para os casos de Aquisição Direta de Materiais e Equipamentos. A Impressão da Aba PLQ pode ser dispensada para casos de Frente de Obra Única.
A65: 5.3. na Aba BDI (Bonificações e Despesas Indiretas):
A67: 5.3.1. Escolha o tipo de empreendimento.
A68: 5.3.2. Escolha se o BDI será do tipo desonerado ou não (aba DADOS)
A69: 5.3.3. Informe a base de cálculo do ISS (0 a 100%).
A70: 5.3.4. Informe a alíquota do ISS (Normalmente de 2 a 5%).
A71: 5.3.5. Defina na tabela os percentuais a serem adotados para cada item que compõe o BDI nos campos em amarelo.
A72: 5.3.6. Preencha o campo observações se necessário (recomendado para os orçamentos que utilizam mais de um BDI).
A74: 5.4. na Aba PO (Planilha Orçamentária):
A76: 5.4.1. Primeiramente, selecione os níveis de cada item do orçamento na coluna NÍVEL.
A77: 5.4.1.1: O nível de "Serviço" serve tanto para serviços ou insumos (mão-de-obra / material / equipamento / veículo / máquina / ferramenta / etc). Um "nível 2/3/4" é um título (é preenchida apenas a coluna descrição) utilizado para organizar melhor a planilha orçamentária e engloba (agrupa) serviços e agrupadores de nível inferior.
A78: 5.4.2. Após a seleção dos níveis, preencha, para cada serviço, as informações sobre a Fonte de Referência, (SINAPI, SICRO, SIURB, etc) e o respectivo Código de Referência.
A79: 5.4.3. Esta planilha é compatível com o arquivo REFERÊNCIA distribuído pela CAIXA. Caso o arquivo REFERÊNCIA esteja aberto, será possível buscar um código através do botão "Buscar Código". Desta forma a descrição dos serviços será preenchida automaticamente (podendo ser substituída). Caso contrário, seu preenchimento deve ser manual.
A80: 5.4.3.1. As descrições e unidades preenchidas automaticamente ficarão vinculadas ao arquivo REFERÊNCIA até que se use o botão "Fixar Descrições", que quebra a fórmula e transforma as descrições em texto.
A81: 5.4.4. Preencher o custo unitário do serviço/insumo na Coluna CUSTO UNITÁRIO. ATENÇÃO: o custo unitário adotado deve ser menor ou igual ao contido na tabela de referência ou mediana das cotações de mercado.
A82: 5.4.5. Indicar o BDI adotado para cada serviço/insumo na Coluna BDI. Preferencialmente selecione uma das opções da lista suspensa que aparecerá na célula, esta lista contém os 05 BDIs que podem ser preenchidos na Aba BDI (conforme item 5.2 das instruções). Caso seja necessária a adoção de mais de 05 valores diferentes de BDI, digite o percentual diretamente na célula.
A83: 5.4.6. Conforme selecionado no item 4.1. desta Aba, a Coluna Quantidade pode ser preenchida diretamente na PO, ou representar a soma das quantidades de cada Frente de Obra, informadas na aba PLQ (Planilha de Levantamento de Quantitativos).
A84: 5.4.7. OBSERVAÇÃO: As demais colunas (Item / Quantidade / Preço Unitário / Preço Total) são de preenchimento automático. Não tente preenche-las ou alterá-las na Aba PO.
A85: 5.4.8. Se for necessário acrescentar ou excluir linhas da Planilha Orçamentária, utilize o Botão EDITAR PLANILHA e selecione as opções no quadro. ATENÇÃO: quanto maior o número de linhas mais lento será o processamento dos dados, então acrescente apenas o número necessário ou um pouco a mais.
A86: 5.4.8.1. Evite deixar linhas em branco no corpo da Planilha Orçamentária.
A87: 5.4.9. Caso deseje importar os dados de outro arquivo utilize apenas a opção COLAR ESPECIAL ==> VALORES.
A88: 5.4.10. Clique no Botão LICITAR / REPROGRAMAR para preencher o Orçamento Licitado ou Reprogramado.
A90: 5.5. na Aba PLQ (Planilha de Levantamento de Quantitativos):
A92: 5.5.1. Preencha primeiramente as Frentes de Obra.
A93: 5.5.1.1. Exemplos de Frentes de Obra (Rua A trecho 01 / Rua A trecho 02 / Rua B ; UH 01 / UH 02 / UH 03).
A94: 5.5.2. Preencha as quantidades dos serviços por frente de obra. A soma das quantidades de todas as frentes de um determinado serviço será a quantidade exibida na Planilha Orçamentária.
A95: 5.5.3. Caso deseje incluir ou excluir frentes, utilize os botões ADICIONAR e EXCLUIR.
A97: 5.6. na Aba CFF (Cronograma Físico-Financeiro):
A99: 5.6.1. Preencha a data de início da obra na aba Dados.
A100: 5.6.2. Preencha as porcentagens previstas por parcela para cada meta ou macrosserviço.
A101: 5.6.3. Para atualizar o Cronograma conforme o Orçamento e incluir ou excluir parcelas, utilize o botão EDITAR / ATUALIZAR CRONOGRAMA.
L107: (Selecione uma Localidade)
L108: Aracaju / SE | S108: =T38 -> 0.2963
L109: Belém / PA | S109: =U38 -> 
L110: Belo Horizonte / MG | S110: =V38 -> 
L111: Boa Vista / RR | S111: =W38 -> 
L112: Brasília / DF | S112: =X38 -> 
L113: Campo Grande / MS
L114: Cuiabá / MT
L115: Curitiba / PR | P115: Empreitada Preço Global
L116: Florianópolis / SC | P116: Empreitada Preço Unitário
L117: Fortaleza / CE | P117: Empreitada Integral
L118: Goiânia / GO | P118: Tarefa
L119: João Pessoa / PB | P119: Contratação Integrada
L120: Macapá / AP | P120: Não se aplica
L121: Maceió / AL
L122: Manaus / AM | P122: BM
L123: Natal / RN | P123: PLE
L124: Palmas / TO
L125: Porto Alegre / RS
L126: Porto Velho / RO
L127: Recife / PE
L128: Rio Branco / AC
L129: Rio de Janeiro / RJ
L130: Salvador / BA
L131: São Luís / MA
L132: São Paulo / SP
L133: Teresina / PI
L134: Vitória / ES
A220: =A28 -> Nº OPERAÇÃO | C220: =C28 -> GESTOR | F220: =F28 -> PROGRAMA | J220: =J28 -> AÇÃO / MODALIDADE | P220: =P28 -> OBJETO
A221: =IF(A29="","",A29) -> 1069.924-72/2019 | C221: =IF(C29="","",C29) -> MDR (antigo Mcidades) | F221: =IF(F29="","",F29) -> Planejamento Urbano | J221: =IF(J29="","",J29) -> Apoio a Política Nacional de Desenvolvimento Urbano | L221: =IF(#REF!="","",#REF!) ->  | N221: =IF(#REF!="","",#REF!) ->  | P221: =IF(P29="","",P29) -> Pavimentação asfáltica em Vias Públicas
A223: =A31 -> PROPONENTE / TOMADOR | G223: =G31 -> MUNICÍPIO / UF | K223: =K31 -> LOCALIDADE / ENDEREÇO | Q223: =Q31 -> APELIDO DO EMPREENDIMENTO
A224: =IF(A32="","",A32) -> Município de Veríssimo | G224: =IF(G32="","",G32) -> Veríssimo/MG | H224: =IF(I32="","",I32) ->  | J224: =IF(#REF!="","",#REF!) ->  | K224: =IF(K32="","",K32) -> Diversas trechos de ruas | Q224: =IF(Q32="","",Q32) -> Pavimentação asfáltica 2020-1
A226: =A37 -> DATA BASE | C226: =C37 -> DESON. | D226: =D37 -> LOCALIDADE DO SINAPI | G226: =G37 -> DESCRIÇÃO DO LOTE | T226: =T37 -> BDI 1 | U226: =U37 -> BDI 2 | V226: =V37 -> BDI 3 | W226: =W37 -> BDI 4 | X226: =X37 -> BDI 5
A227: =IF(A38="","",A38) -> 2020-07-01 | C227: =IF(C38="","",C38) -> Sim | D227: Belo Horizonte / MG | G227: Pavimentação de Vias Públicas | T227: 0.2963
A229: CTEF n.º | C229: NOME DA EMPRESA / CNPJ: | H229: DATA BASE | J229: DESON. | K229: REGIME DE EXECUÇÃO | N229: ACOMP. | O229: OBJETO CTEF | U229: DATA ASSINATURA | W229: VIGÊNCIA
A230: =IF(A43="","",A43) ->  | C230: =IF(C43="","",C43) ->  | E230: =IF(E43="","",E43) ->  | G230: =IF(G43="","",G43) ->  | H230: =IF(H43="","",H43) ->  | I230: =IF(I43="","",I43) ->  | J230: =IF(J43="","",J43) ->  | K230: =IF(K43="","",K43) ->  | M230: =IF(M43="","",M43) ->  | N230: =IF(N43="","",N43) ->  | O230: =IF(O43="","",O43) ->  | Q230: =IF(Q43="","",Q43) ->  | S230: =IF(S43="","",S43) ->  | U230: =IF(U43="","",U43) ->  | W230: =IF(W43="","",W43) -> 

Sheet BDI (1)
E1: MIN | F1: MED | G1: MAX | N1: ="Quadro de Composição do BDI "&MID(CELL("nome.arquivo",N1),5+FIND("BDI (",CELL("nome.arquivo",N1)),1) -> Quadro de Composição do BDI 1
A2: Construção e Reforma de Edifícios | B2: AC | C2: =CONCATENATE(A2,"-",B2) -> Construção e Reforma de Edifícios-AC | E2: 0.03 | F2: 0.04 | G2: 0.055
A3: =A2 -> Construção e Reforma de Edifícios | B3: SG | C3: Construção e Reforma de Edifícios-SG | E3: 0.008 | F3: 0.008 | G3: 0.01
A4: =A3 -> Construção e Reforma de Edifícios | B4: R | C4: Construção e Reforma de Edifícios-R | E4: 0.0097 | F4: 0.0127 | G4: 0.0127 | I4: Nº TC/CR | K4: PROPONENTE / TOMADOR
A5: =A4 -> Construção e Reforma de Edifícios | B5: DF | C5: Construção e Reforma de Edifícios-DF | E5: 0.0059 | F5: 0.0123 | G5: 0.0139 | I5: =DADOS!A29 -> 1069.924-72/2019 | K5: =DADOS!A32 -> Município de Veríssimo
A6: =A5 -> Construção e Reforma de Edifícios | B6: L | C6: Construção e Reforma de Edifícios-L | E6: 0.0616 | F6: 0.074 | G6: 0.0896
A7: =A6 -> Construção e Reforma de Edifícios | B7: BDI PAD | C7: Construção e Reforma de Edifícios-BDI PAD | E7: 0.2034 | F7: 0.2212 | G7: 0.25 | I7: OBJETO
A8: Construção de Praças Urbanas, Rodovias, Ferrovias e recapeamento e pavimentação de vias urbanas | B8: AC | C8: Construção de Praças Urbanas, Rodovias, Ferrovias e recapeamento e pavimentação de vias urbanas-AC | E8: 0.038 | F8: 0.0401 | G8: 0.0467 | I8: =DADOS!P29 -> Pavimentação asfáltica em Vias Públicas
A9: Construção de Praças Urbanas, Rodovias, Ferrovias e recapeamento e pavimentação de vias urbanas | B9: SG | C9: Construção de Praças Urbanas, Rodovias, Ferrovias e recapeamento e pavimentação de vias urbanas-SG | E9: 0.0032 | F9: 0.004 | G9: 0.0074
A10: Construção de Praças Urbanas, Rodovias, Ferrovias e recapeamento e pavimentação de vias urbanas | B10: R | C10: Construção de Praças Urbanas, Rodovias, Ferrovias e recapeamento e pavimentação de vias urbanas-R | E10: 0.005 | F10: 0.0056 | G10: 0.0097 | I10: TIPO DE OBRA DO EMPREENDIMENTO | Q10: DESONERAÇÃO
A11: Construção de Praças Urbanas, Rodovias, Ferrovias e recapeamento e pavimentação de vias urbanas | B11: DF | C11: Construção de Praças Urbanas, Rodovias, Ferrovias e recapeamento e pavimentação de vias urbanas-DF | E11: 0.0102 | F11: 0.0111 | G11: 0.0121 | I11: Construção de Praças Urbanas, Rodovias, Ferrovias e recapeamento e pavimentação de vias urbanas | Q11: =DADOS!$C$38 -> Sim
A12: Construção de Praças Urbanas, Rodovias, Ferrovias e recapeamento e pavimentação de vias urbanas | B12: L | C12: Construção de Praças Urbanas, Rodovias, Ferrovias e recapeamento e pavimentação de vias urbanas-L | E12: 0.0664 | F12: 0.073 | G12: 0.0869
A13: Construção de Praças Urbanas, Rodovias, Ferrovias e recapeamento e pavimentação de vias urbanas | B13: BDI PAD | C13: Construção de Praças Urbanas, Rodovias, Ferrovias e recapeamento e pavimentação de vias urbanas-BDI PAD | E13: 0.196 | F13: 0.2097 | G13: 0.2423 | I13: Conforme legislação tributária municipal, definir estimativa de percentual da base de cálculo para o ISS: | Q13: 1
A14: Construção de Redes de Abastecimento de Água, Coleta de Esgoto | B14: AC | C14: Construção de Redes de Abastecimento de Água, Coleta de Esgoto-AC | E14: 0.0343 | F14: 0.0493 | G14: 0.0671 | I14: Sobre a base de cálculo, definir a respectiva alíquota do ISS (entre 2% e 5%): | Q14: 0.04
A15: =A14 -> Construção de Redes de Abastecimento de Água, Coleta de Esgoto | B15: SG | C15: Construção de Redes de Abastecimento de Água, Coleta de Esgoto-SG | E15: 0.0028 | F15: 0.0049 | G15: 0.0075
I16: Itens | M16: Siglas | N16: % Adotado | O16: Situação | P16: 1º Quartil | Q16: Médio | R16: 3º Quartil | T16: =IF(V27,"Para BDI fora do intervalo estatístico, deve ser apresentado Relatório Técnico Circunstanciado justificando a adoção do percentual de cada parcela do BDI.","") -> 
A17: =A15 -> Construção de Redes de Abastecimento de Água, Coleta de Esgoto | B17: R | C17: Construção de Redes de Abastecimento de Água, Coleta de Esgoto-R | E17: 0.01 | F17: 0.0139 | G17: 0.0174
A18: =A17 -> Construção de Redes de Abastecimento de Água, Coleta de Esgoto | B18: DF | C18: Construção de Redes de Abastecimento de Água, Coleta de Esgoto-DF | E18: 0.0094 | F18: 0.0099 | G18: 0.0117 | I18: =IF($I$11=$A$59,"Encargos Sociais incidentes sobre a mão de obra","Administração Central") -> Administração Central | M18: =IF($I$11=$A$59,"K1","AC") -> AC | N18: 0.0401 | O18: - | P18: =VLOOKUP(CONCATENATE(I$11,"-",M18),$C$2:$G$49,3,FALSE) -> 0.038 | Q18: =VLOOKUP(CONCATENATE(I$11,"-",M18),$C$2:$G$49,4,FALSE) -> 0.0401 | R18: =VLOOKUP(CONCATENATE(I$11,"-",M18),$C$2:$G$49,5,FALSE) -> 0.0467
A19: =A18 -> Construção de Redes de Abastecimento de Água, Coleta de Esgoto | B19: L | C19: Construção de Redes de Abastecimento de Água, Coleta de Esgoto-L | E19: 0.0674 | F19: 0.0804 | G19: 0.094 | I19: =IF($I$11=$A$59,"Administração Central da empresa ou consultoria - overhead","Seguro e Garantia") -> Seguro e Garantia | M19: =IF($I$11=$A$59,"K2","SG") -> SG | N19: 0.004 | O19: - | P19: =VLOOKUP(CONCATENATE(I$11,"-",M19),$C$2:$G$49,3,FALSE) -> 0.0032 | Q19: =VLOOKUP(CONCATENATE(I$11,"-",M19),$C$2:$G$49,4,FALSE) -> 0.004 | R19: =VLOOKUP(CONCATENATE(I$11,"-",M19),$C$2:$G$49,5,FALSE) -> 0.0074
A20: =A19 -> Construção de Redes de Abastecimento de Água, Coleta de Esgoto | B20: BDI PAD | C20: Construção de Redes de Abastecimento de Água, Coleta de Esgoto-BDI PAD | E20: 0.2076 | F20: 0.2418 | G20: 0.2644 | I20: =IF($I$11=$A$59,"","Risco") -> Risco | M20: =IF($I$11=$A$59,"","R") -> R | N20: 0.0056 | O20: - | P20: =VLOOKUP(CONCATENATE(I$11,"-",M20),$C$2:$G$49,3,FALSE) -> 0.005 | Q20: =VLOOKUP(CONCATENATE(I$11,"-",M20),$C$2:$G$49,4,FALSE) -> 0.0056 | R20: =VLOOKUP(CONCATENATE(I$11,"-",M20),$C$2:$G$49,5,FALSE) -> 0.0097
A21: Construção e Manutenção de Estações e Redes de Distribuição de Energia Elétrica | B21: AC | C21: Construção e Manutenção de Estações e Redes de Distribuição de Energia Elétrica-AC | E21: 0.0529 | F21: 0.0592 | G21: 0.0793 | I21: =IF($I$11=$A$59,"","Despesas Financeiras") -> Despesas Financeiras | M21: =IF($I$11=$A$59,"","DF") -> DF | N21: 0.0111 | O21: - | P21: =VLOOKUP(CONCATENATE(I$11,"-",M21),$C$2:$G$49,3,FALSE) -> 0.0102 | Q21: =VLOOKUP(CONCATENATE(I$11,"-",M21),$C$2:$G$49,4,FALSE) -> 0.0111 | R21: =VLOOKUP(CONCATENATE(I$11,"-",M21),$C$2:$G$49,5,FALSE) -> 0.0121
A22: =A21 -> Construção e Manutenção de Estações e Redes de Distribuição de Energia Elétrica | B22: SG | C22: Construção e Manutenção de Estações e Redes de Distribuição de Energia Elétrica-SG | E22: 0.0025 | F22: 0.0051 | G22: 0.0056 | I22: =IF($I$11=$A$59,"Margem bruta da empresa de consultoria","Lucro") -> Lucro | M22: =IF($I$11=$A$59,"K3","L") -> L | N22: 0.073 | O22: - | P22: =VLOOKUP(CONCATENATE(I$11,"-",M22),$C$2:$G$49,3,FALSE) -> 0.0664 | Q22: =VLOOKUP(CONCATENATE(I$11,"-",M22),$C$2:$G$49,4,FALSE) -> 0.073 | R22: =VLOOKUP(CONCATENATE(I$11,"-",M22),$C$2:$G$49,5,FALSE) -> 0.0869
A23: =A22 -> Construção e Manutenção de Estações e Redes de Distribuição de Energia Elétrica | B23: R | C23: Construção e Manutenção de Estações e Redes de Distribuição de Energia Elétrica-R | E23: 0.01 | F23: 0.0148 | G23: 0.0197 | I23: Tributos (impostos COFINS 3%, e PIS 0,65%) | M23: CP | N23: 0.0365 | O23: - | P23: 0.0365 | Q23: 0.0365 | R23: 0.0365
A24: =A23 -> Construção e Manutenção de Estações e Redes de Distribuição de Energia Elétrica | B24: DF | C24: Construção e Manutenção de Estações e Redes de Distribuição de Energia Elétrica-DF | E24: 0.0101 | F24: 0.0107 | G24: 0.0111 | I24: Tributos (ISS, variável de acordo com o município) | M24: ISS | N24: =IF($I$11<>$A$58,Q14*Q13,0) -> 0.04 | O24: - | P24: 0 | Q24: 0.025 | R24: 0.05
A25: =A24 -> Construção e Manutenção de Estações e Redes de Distribuição de Energia Elétrica | B25: L | C25: Construção e Manutenção de Estações e Redes de Distribuição de Energia Elétrica-L | E25: 0.08 | F25: 0.0831 | G25: 0.0951 | I25: Tributos (Contribuição Previdenciária sobre a Receita Bruta - 0% ou 4,5% - Desoneração) | M25: CPRB | N25: =IF(AND($I$11<>$A$58,Q11="Sim"),4.5%,0%) -> 0.045 | O25: =IF(AND(N25>=P25, N25<=R25), "OK", "Não OK") -> OK | P25: 0 | Q25: 0.045 | R25: 0.045
A26: =A25 -> Construção e Manutenção de Estações e Redes de Distribuição de Energia Elétrica | B26: BDI PAD | C26: Construção e Manutenção de Estações e Redes de Distribuição de Energia Elétrica-BDI PAD | E26: 0.24 | F26: 0.2584 | G26: 0.2786 | I26: BDI SEM desoneração (Fórmula Acórdão TCU) | M26: BDI PAD | N26: =IF($I$11=$A$58,0,ROUND((((1+N18+N19+N20)*(1+N21)*(1+N22)/(1-(N23+N24)))-1),4)) -> 0.2332 | O26: =IF(OR($I$11=$A$59,$I$11=$A$58,AND(N26>=P26, N26<=R26)), "OK", "FORA DO INTERVALO") -> OK | P26: =IF($I$11=$A$58,0,VLOOKUP(CONCATENATE($I$11,"-",$M26),$C$2:$G$49,3,FALSE)) -> 0.196 | Q26: =IF($I$11=$A$58,0,VLOOKUP(CONCATENATE($I$11,"-",$M26),$C$2:$G$49,4,FALSE)) -> 0.2097 | R26: =IF($I$11=$A$58,0,VLOOKUP(CONCATENATE($I$11,"-",$M26),$C$2:$G$49,5,FALSE)) -> 0.2423
A27: Obras Portuárias, Marítimas e Fluviais | B27: AC | C27: Obras Portuárias, Marítimas e Fluviais-AC | E27: 0.04 | F27: 0.0552 | G27: 0.0785 | I27: BDI COM desoneração | M27: BDI DES | N27: =IF($I$11=$A$58,0,ROUND((((1+N18+N19+N20)*(1+N21)*(1+N22)/(1-(N23+N24+N25)))-1),4)) -> 0.2963 | O27: =IF(Q11<>"Sim","",O26) -> OK | V27: =AND(COUNTA(N18:N23)=6,O26<>"ok",NOT(V29)) -> FALSE | W27: pedir anexo
A28: =A27 -> Obras Portuárias, Marítimas e Fluviais | B28: SG | C28: Obras Portuárias, Marítimas e Fluviais-SG | E28: 0.0081 | F28: 0.0122 | G28: 0.0199
A29: =A28 -> Obras Portuárias, Marítimas e Fluviais | B29: R | C29: Obras Portuárias, Marítimas e Fluviais-R | E29: 0.0146 | F29: 0.0232 | G29: 0.0316 | I29: =IF(V29,"X","") ->  | J29: Anexo: Relatório Técnico Circunstanciado justificando a adoção do percentual de cada parcela do BDI. | V29: FALSE | W29: anexo apresentado
I31: Os valores de BDI foram calculados com o emprego da fórmula:
A32: =A29 -> Obras Portuárias, Marítimas e Fluviais | B32: DF | C32: Obras Portuárias, Marítimas e Fluviais-DF | E32: 0.0094 | F32: 0.0102 | G32: 0.0133 | L32: =IF(Q11="Sim","BDI.DES =","BDI.PAD =") -> BDI.DES = | M32: =IF($I$11=$A$59,"(1+K1+K2)*(1+K3)","(1+AC + S + R + G)*(1 + DF)*(1+L)") -> (1+AC + S + R + G)*(1 + DF)*(1+L) | P32: - 1
A33: =A32 -> Obras Portuárias, Marítimas e Fluviais | B33: L | C33: Obras Portuárias, Marítimas e Fluviais-L | E33: 0.0714 | F33: 0.084 | G33: 0.1043 | M33: =IF(Q11="Sim","(1-CP-ISS-CRPB)","(1-CP-ISS)") -> (1-CP-ISS-CRPB)
A34: =A33 -> Obras Portuárias, Marítimas e Fluviais | B34: BDI PAD | C34: Obras Portuárias, Marítimas e Fluviais-BDI PAD | E34: 0.228 | F34: 0.2748 | G34: 0.3095
I35: =CONCATENATE("Declaro para os devidos fins que, conforme legislação tributária municipal, a base de cálculo para ",I11,", é de ",Q13*100,"%, com a respectiva alíquota de ",Q14*100,"%.") -> Declaro para os devidos fins que, conforme legislação tributária municipal, a base de cálculo para Construção de Praças Urbanas, Rodovias, Ferrovias e recapeamento e pavimentação de vias urbanas, é de 100%, com a respectiva alíquota de 4%.
I37: =CONCATENATE("Declaro para os devidos fins que o regime de Contribuição Previdenciária sobre a Receita Bruta adotado para elaboração do orçamento foi ",IF(Q11="Sim","COM","SEM")," Desoneração, e que esta é a alternativa mais adequada para a Administração Pública.") -> Declaro para os devidos fins que o regime de Contribuição Previdenciária sobre a Receita Bruta adotado para elaboração do orçamento foi COM Desoneração, e que esta é a alternativa mais adequada para a Administração Pública.
A38: Fornecimento de Materiais e Equipamentos (aquisição indireta - em conjunto com licitação de obras) | B38: AC | C38: Fornecimento de Materiais e Equipamentos (aquisição indireta - em conjunto com licitação de obras)-AC | E38: 0.015 | F38: 0.0345 | G38: 0.0449
A39: =A38 -> Fornecimento de Materiais e Equipamentos (aquisição indireta - em conjunto com licitação de obras) | B39: SG | C39: Fornecimento de Materiais e Equipamentos (aquisição indireta - em conjunto com licitação de obras)-SG | E39: 0.003 | F39: 0.0048 | G39: 0.0082 | I39: Observações:
A40: =A39 -> Fornecimento de Materiais e Equipamentos (aquisição indireta - em conjunto com licitação de obras) | B40: R | C40: Fornecimento de Materiais e Equipamentos (aquisição indireta - em conjunto com licitação de obras)-R | E40: 0.0056 | F40: 0.0085 | G40: 0.0089
A41: =A40 -> Fornecimento de Materiais e Equipamentos (aquisição indireta - em conjunto com licitação de obras) | B41: DF | C41: Fornecimento de Materiais e Equipamentos (aquisição indireta - em conjunto com licitação de obras)-DF | E41: 0.0085 | F41: 0.0085 | G41: 0.0111
A42: =A41 -> Fornecimento de Materiais e Equipamentos (aquisição indireta - em conjunto com licitação de obras) | B42: L | C42: Fornecimento de Materiais e Equipamentos (aquisição indireta - em conjunto com licitação de obras)-L | E42: 0.035 | F42: 0.0511 | G42: 0.0622 | I42: =PO!K52 -> Veríssimo/MG | O42: =PO!K55 -> 2020-05-29
A43: =A42 -> Fornecimento de Materiais e Equipamentos (aquisição indireta - em conjunto com licitação de obras) | B43: BDI PAD | C43: Fornecimento de Materiais e Equipamentos (aquisição indireta - em conjunto com licitação de obras)-BDI PAD | E43: 0.111 | F43: 0.1402 | G43: 0.168 | I43: Local | O43: Data
A44: Estudos e Projetos, Planos e Gerenciamento e outros correlatos | B44: K1 | C44: Estudos e Projetos, Planos e Gerenciamento e outros correlatos-K1 | E44: - | F44: - | G44: -
A45: =A44 -> Estudos e Projetos, Planos e Gerenciamento e outros correlatos | B45: K2 | C45: Estudos e Projetos, Planos e Gerenciamento e outros correlatos-K2 | E45: - | F45: 0.2 | G45: -
A46: =A45 -> Estudos e Projetos, Planos e Gerenciamento e outros correlatos | C46: Estudos e Projetos, Planos e Gerenciamento e outros correlatos- | E46: - | F46: - | G46: - | I46: Responsável Técnico | O46: Responsável Tomador
A47: =A46 -> Estudos e Projetos, Planos e Gerenciamento e outros correlatos | C47: Estudos e Projetos, Planos e Gerenciamento e outros correlatos- | E47: - | F47: - | G47: - | I47: Nome: | J47: =DADOS!B54 -> Luiz Carlos Furtado de Almeida | O47: Nome: | P47: Luiz Carlos da Silva
A48: =A47 -> Estudos e Projetos, Planos e Gerenciamento e outros correlatos | B48: K3 | C48: Estudos e Projetos, Planos e Gerenciamento e outros correlatos-K3 | E48: - | F48: 0.12 | G48: - | I48: Título: | J48: =DADOS!B55 -> Engenheiro Civil | O48: Cargo: | P48: Prefeito Municipal
A49: =A48 -> Estudos e Projetos, Planos e Gerenciamento e outros correlatos | B49: BDI PAD | C49: Estudos e Projetos, Planos e Gerenciamento e outros correlatos-BDI PAD | E49: - | F49: - | G49: - | I49: =DADOS!A56 -> CREA/CAU: | J49: =DADOS!B56 -> MG-28492/D
I50: =DADOS!A57 -> ART/RRT: | J50: =DADOS!B57 -> 5881155
A52: Construção e Reforma de Edifícios
A53: Construção de Praças Urbanas, Rodovias, Ferrovias e recapeamento e pavimentação de vias urbanas
A54: Construção de Redes de Abastecimento de Água, Coleta de Esgoto
A55: Construção e Manutenção de Estações e Redes de Distribuição de Energia Elétrica
A56: Obras Portuárias, Marítimas e Fluviais
A57: Fornecimento de Materiais e Equipamentos (aquisição indireta - em conjunto com licitação de obras)
A58: Fornecimento de Materiais e Equipamentos (aquisição direta)
A59: Estudos e Projetos, Planos e Gerenciamento e outros correlatos

Sheet PO
N1: PO - PLANILHA ORÇAMENTÁRIA | T1: Grau de Sigilo
B2: LOTE | C2: Meta | D2: Nível 2 | E2: Nível 3 | F2: Nível 4 | G2: Serviço | N2: =CHOOSE(1+LOG(1+2*(TipoOrçamento="BASE")+4*(TipoOrçamento="LICITADO")+8*(TipoOrçamento="REPROGRAMADOAC")+16*(TipoOrçamento="REPROGRAMADONPL"),2),"nada","Orçamento Base para Licitação","Orçamento Licitado","Orçamento Licitado Reprogramado","Orçamento Base para Licitação - Reprogramado") -> Orçamento Base para Licitação | T2: #PUBLICO | W2: Arredondamento
W3: Quantidade | X3: TRUE
A4: Nmax | U4: ERRO GERAL | W4: Custo Unitáro | X4: TRUE
A5: =MAX($A$12:$A$41) -> 2 | U5: =IF(COUNTIF($U$12:OFFSET($U$41,-1,0),"DESCRIÇÃO")+COUNTIF($U$12:OFFSET($U$41,-1,0),"UNIDADE")+COUNTIF($U$12:OFFSET($U$41,-1,0),"SEM VALOR")>0,"NÃO OK","OK") -> OK | W5: BDI | X5: TRUE
W6: Preço Unitário | X6: TRUE
W7: Preço Total | X7: TRUE
P9: =OFFSET(PLQ!$E$12,ROW($P9)-ROW(P$12),0) -> -
A10: Nível | B10: Altura | C10: n1 | D10: n2 | E10: n3 | F10: n4 | G10: n5 | H10: Czero | I10: Cnível | J10: Nível | K10: Item | L10: Fonte | M10: Código | N10: Descrição | O10: Unidade | P10: Quantidade | Q10: =IF(OR(TipoOrçamento="LICITADO",TipoOrçamento="REPROGRAMADOAC"),"Preço Unitário (R$)","Custo Unitário (R$)") -> Custo Unitário (R$) | R10: BDI (%) | S10: Preço Unitário (R$) | T10: Preço Total (R$) | U10: Erro de Dados | V10: Lista Crono | W10: Concatenação Fonte-Código | X10: BancoRef | Y10: =IF(TipoOrçamento="LICITADO","Preço Unitário Edital (R$)","Custo Unitário Referência (R$)") -> Custo Unitário Referência (R$) | Z10: =IF(TipoOrçamento="LICITADO","Valor BDI Edital","Valor BDI") -> Valor BDI
A11: =CHOOSE(1+LOG(1+2*(J11="Meta")+4*(J11="Nível 2")+8*(J11="Nível 3")+16*(J11="Nível 4")+32*(J11="Serviço"),2),0,1,2,3,4,"S") -> S | B11: =IF(OR(A11="S",A11=0),0,IF(ISERROR(I11),H11,SMALL(H11:I11,1))) -> 0 | C11: =IF($A11=1,OFFSET(C11,-1,0)+1,OFFSET(C11,-1,0)) -> n1 | D11: =IF($A11=1,0,IF($A11=2,OFFSET(D11,-1,0)+1,OFFSET(D11,-1,0))) -> n2 | E11: =IF(AND($A11<=2,$A11<>0),0,IF($A11=3,OFFSET(E11,-1,0)+1,OFFSET(E11,-1,0))) -> n3 | F11: =IF(AND($A11<=3,$A11<>0),0,IF($A11=4,OFFSET(F11,-1,0)+1,OFFSET(F11,-1,0))) -> n4 | G11: =IF(AND($A11<=4,$A11<>0),0,IF($A11="S",OFFSET(G11,-1,0)+1,OFFSET(G11,-1,0))) ->  | H11: =IF(OR($A11="S",$A11=0),0,MATCH(0,OFFSET($B11,1,$A11,ROW($A$41)-ROW($A11)),0)) -> 0 | I11: =IF(OR($A11="S",$A11=0),0,MATCH(OFFSET($B11,0,$A11)+1,OFFSET($B11,1,$A11,ROW($A$41)-ROW($A11)),0)) -> 0 | J11: Serviço | K11: =IF($A11=0,"-",CONCATENATE(C11&".",IF(AND($A$5>=2,$A11>=2),D11&".",""),IF(AND($A$5>=3,$A11>=3),E11&".",""),IF(AND($A$5>=4,$A11>=4),F11&".",""),IF($A11="S",G11&".",""))) ->  | N11: =IF($A11="S",Referencia.Descricao,"(digite a descrição aqui)") ->  | O11: =Referencia.Unidade ->  | P11: =OFFSET(PLQ!$E$12,ROW($P11)-ROW(P$12),0) -> 0 | R11: BDI 1 | S11: =IF($A11="S",IF($Q$10="Preço Unitário (R$)",PO.CustoUnitario,ROUND(PO.CustoUnitario*(1+$Z11),15-13*$X$6)),0) -> 0 | T11: =IF($A11="S",VTOTAL1,IF($A11=0,0,ROUND(SomaAgrup,15-13*$X$7))) -> 0 | U11: =IF($J11="","",IF($N11="","DESCRIÇÃO",IF(AND($J11="Serviço",$O11=""),"UNIDADE",IF($T11<=0,"SEM VALOR",IF(AND($Y11<>"",$Q11>$Y11),"ACIMA REF.",""))))) -> DESCRIÇÃO | V11: =IF(OR($A11=0,$A11="S",$A11>CFF!$A$9),"",MAX(V$12:OFFSET(V11,-1,0))+1) ->  | W11: =IF(AND($J11="Serviço",$M11<>""),IF($L11="",$M11,CONCATENATE($L11,"-",$M11))) -> FALSE | X11: =IF(AND(Fonte<>"",Código<>""),MATCH(Fonte&" "&IF(Fonte="sinapi",SUBSTITUTE(SUBSTITUTE(Código,"/00","/"),"/0","/"),Código),INDIRECT("'[Referência "&_xlnm.Database&".xls]Banco'!$a:$a"),0),"X") -> X | Y11: =IF(Import.Desoneracao="sim",Referencia.Desonerado,Referencia.NaoDesonerado) -> 0 | Z11: =ROUND(IF(ISNUMBER(R11),R11,IF(LEFT(R11,3)="BDI",HLOOKUP(R11,DADOS!$T$37:$X$38,2,FALSE),0)),15-11*$X$5) -> 0.2963
A12: 0 | B12: =COUNTA(OFFSET(B12,1,0):B$41) -> 28 | J12: =IF(OR(TipoOrçamento="LICITADO",TipoOrçamento="REPROGRAMADOAC"),"CTEF","LOTE") -> LOTE | K12: 0 | N12: =IF(TipoOrçamento="LICITADO",DADOS!O43,DADOS!G38) -> Pavimentação de Vias Públicas | T12: =SUMIF(OFFSET($J12,1,0,ROW(T41)-ROW(T12)-1),"Serviço",OFFSET(T12,1,0,ROW(T41)-ROW(T12)-1)) -> 263000 | U12: =IF($N12=0,"DESCRIÇÃO","") ->  | V12: 0
A13: =CHOOSE(1+LOG(1+2*(J13="Meta")+4*(J13="Nível 2")+8*(J13="Nível 3")+16*(J13="Nível 4")+32*(J13="Serviço"),2),0,1,2,3,4,"S") -> 1 | B13: =IF(OR(A13="S",A13=0),0,IF(ISERROR(I13),H13,SMALL(H13:I13,1))) -> 28 | C13: =IF($A13=1,OFFSET(C13,-1,0)+1,OFFSET(C13,-1,0)) -> 1 | D13: =IF($A13=1,0,IF($A13=2,OFFSET(D13,-1,0)+1,OFFSET(D13,-1,0))) -> 0 | E13: =IF(AND($A13<=2,$A13<>0),0,IF($A13=3,OFFSET(E13,-1,0)+1,OFFSET(E13,-1,0))) -> 0 | F13: =IF(AND($A13<=3,$A13<>0),0,IF($A13=4,OFFSET(F13,-1,0)+1,OFFSET(F13,-1,0))) -> 0 | G13: =IF(AND($A13<=4,$A13<>0),0,IF($A13="S",OFFSET(G13,-1,0)+1,OFFSET(G13,-1,0))) -> 0 | H13: =IF(OR($A13="S",$A13=0),0,MATCH(0,OFFSET($B13,1,$A13,ROW($A$41)-ROW($A13)),0)) -> 28 | I13: =IF(OR($A13="S",$A13=0),0,MATCH(OFFSET($B13,0,$A13)+1,OFFSET($B13,1,$A13,ROW($A$41)-ROW($A13)),0)) ->  | J13: Meta | K13: =IF($A13=0,"-",CONCATENATE(C13&".",IF(AND($A$5>=2,$A13>=2),D13&".",""),IF(AND($A$5>=3,$A13>=3),E13&".",""),IF(AND($A$5>=4,$A13>=4),F13&".",""),IF($A13="S",G13&".",""))) -> 1. | N13: Pavimentação de Vias Públicas | P13: =OFFSET(PLQ!$E$12,ROW($P13)-ROW(P$12),0) -> 0 | R13: BDI 1 | S13: =IF($A13="S",IF($Q$10="Preço Unitário (R$)",PO.CustoUnitario,ROUND(PO.CustoUnitario*(1+$Z13),15-13*$X$6)),0) -> 0 | T13: =IF($A13="S",VTOTAL1,IF($A13=0,0,ROUND(SomaAgrup,15-13*$X$7))) -> 263000 | U13: =IF($J13="","",IF($N13="","DESCRIÇÃO",IF(AND($J13="Serviço",$O13=""),"UNIDADE",IF($T13<=0,"SEM VALOR",IF(AND($Y13<>"",$Q13>$Y13),"ACIMA REF.",""))))) ->  | V13: =IF(OR($A13=0,$A13="S",$A13>CFF!$A$9),"",MAX(V$12:OFFSET(V13,-1,0))+1) -> 1 | W13: =IF(AND($J13="Serviço",$M13<>""),IF($L13="",$M13,CONCATENATE($L13,"-",$M13))) -> FALSE | X13: =IF(AND(Fonte<>"",Código<>""),MATCH(Fonte&" "&IF(Fonte="sinapi",SUBSTITUTE(SUBSTITUTE(Código,"/00","/"),"/0","/"),Código),INDIRECT("'[Referência "&_xlnm.Database&".xls]Banco'!$a:$a"),0),"X") -> X | Y13: =IF(Import.Desoneracao="sim",Referencia.Desonerado,Referencia.NaoDesonerado) -> 0 | Z13: =ROUND(IF(ISNUMBER(R13),R13,IF(LEFT(R13,3)="BDI",HLOOKUP(R13,DADOS!$T$37:$X$38,2,FALSE),0)),15-11*$X$5) -> 0.2963
A14: 2 | B14: 2 | C14: 1 | D14: 1 | E14: 0 | F14: 0 | G14: 0 | H14: 27 | I14: 2 | J14: Nível 2 | K14: 1.1. | N14: SERVIÇOS PRELIMINARES | O14: =Referencia.Unidade ->  | P14: =OFFSET(PLQ!$E$12,ROW($P14)-ROW(P$12),0) -> 0 | R14: BDI 1 | S14: 0 | T14: 1629.18 | V14: =IF(OR($A14=0,$A14="S",$A14>CFF!$A$9),"",MAX(V$12:OFFSET(V14,-1,0))+1) -> 2 | W14: FALSE | X14: X | Y14: 0 | Z14: =ROUND(IF(ISNUMBER(R14),R14,IF(LEFT(R14,3)="BDI",HLOOKUP(R14,DADOS!$T$37:$X$38,2,FALSE),0)),15-11*$X$5) -> 0.2963
A15: =CHOOSE(1+LOG(1+2*(J15="Meta")+4*(J15="Nível 2")+8*(J15="Nível 3")+16*(J15="Nível 4")+32*(J15="Serviço"),2),0,1,2,3,4,"S") -> S | B15: =IF(OR(A15="S",A15=0),0,IF(ISERROR(I15),H15,SMALL(H15:I15,1))) -> 0 | C15: =IF($A15=1,OFFSET(C15,-1,0)+1,OFFSET(C15,-1,0)) -> 1 | D15: =IF($A15=1,0,IF($A15=2,OFFSET(D15,-1,0)+1,OFFSET(D15,-1,0))) -> 1 | E15: =IF(AND($A15<=2,$A15<>0),0,IF($A15=3,OFFSET(E15,-1,0)+1,OFFSET(E15,-1,0))) -> 0 | F15: =IF(AND($A15<=3,$A15<>0),0,IF($A15=4,OFFSET(F15,-1,0)+1,OFFSET(F15,-1,0))) -> 0 | G15: =IF(AND($A15<=4,$A15<>0),0,IF($A15="S",OFFSET(G15,-1,0)+1,OFFSET(G15,-1,0))) -> 1 | H15: 0 | I15: 0 | J15: Serviço | K15: =IF($A15=0,"-",CONCATENATE(C15&".",IF(AND($A$5>=2,$A15>=2),D15&".",""),IF(AND($A$5>=3,$A15>=3),E15&".",""),IF(AND($A$5>=4,$A15>=4),F15&".",""),IF($A15="S",G15&".",""))) -> 1.1.1. | L15: Composição | M15: PLA-002 | N15: =IF($A15="S",Referencia.Descricao,"(digite a descrição aqui)") -> PLACA DA OBRA - MODELO GOVERNO FEDERAL | O15: =Referencia.Unidade -> M2 | P15: =OFFSET(PLQ!$E$12,ROW($P15)-ROW(P$12),0) -> 4.5 | Q15: 279.29 | R15: BDI 1 | S15: =IF($A15="S",IF($Q$10="Preço Unitário (R$)",PO.CustoUnitario,ROUND(PO.CustoUnitario*(1+$Z15),15-13*$X$6)),0) -> 362.04 | T15: =IF($A15="S",VTOTAL1,IF($A15=0,0,ROUND(SomaAgrup,15-13*$X$7))) -> 1629.18 | U15: =IF($J15="","",IF($N15="","DESCRIÇÃO",IF(AND($J15="Serviço",$O15=""),"UNIDADE",IF($T15<=0,"SEM VALOR",IF(AND($Y15<>"",$Q15>$Y15),"ACIMA REF.",""))))) ->  | V15: =IF(OR($A15=0,$A15="S",$A15>CFF!$A$9),"",MAX(V$12:OFFSET(V15,-1,0))+1) ->  | W15: =IF(AND($J15="Serviço",$M15<>""),IF($L15="",$M15,CONCATENATE($L15,"-",$M15))) -> Composição-PLA-002 | X15: =IF(AND(Fonte<>"",Código<>""),MATCH(Fonte&" "&IF(Fonte="sinapi",SUBSTITUTE(SUBSTITUTE(Código,"/00","/"),"/0","/"),Código),INDIRECT("'[Referência "&_xlnm.Database&".xls]Banco'!$a:$a"),0),"X") -> 12 | Y15: =IF(Import.Desoneracao="sim",Referencia.Desonerado,Referencia.NaoDesonerado) -> 317.33 | Z15: =ROUND(IF(ISNUMBER(R15),R15,IF(LEFT(R15,3)="BDI",HLOOKUP(R15,DADOS!$T$37:$X$38,2,FALSE),0)),15-11*$X$5) -> 0.2963
A16: =CHOOSE(1+LOG(1+2*(J16="Meta")+4*(J16="Nível 2")+8*(J16="Nível 3")+16*(J16="Nível 4")+32*(J16="Serviço"),2),0,1,2,3,4,"S") -> 2 | B16: =IF(OR(A16="S",A16=0),0,IF(ISERROR(I16),H16,SMALL(H16:I16,1))) -> 2 | C16: =IF($A16=1,OFFSET(C16,-1,0)+1,OFFSET(C16,-1,0)) -> 1 | D16: =IF($A16=1,0,IF($A16=2,OFFSET(D16,-1,0)+1,OFFSET(D16,-1,0))) -> 2 | E16: =IF(AND($A16<=2,$A16<>0),0,IF($A16=3,OFFSET(E16,-1,0)+1,OFFSET(E16,-1,0))) -> 0 | F16: =IF(AND($A16<=3,$A16<>0),0,IF($A16=4,OFFSET(F16,-1,0)+1,OFFSET(F16,-1,0))) -> 0 | G16: =IF(AND($A16<=4,$A16<>0),0,IF($A16="S",OFFSET(G16,-1,0)+1,OFFSET(G16,-1,0))) -> 0 | H16: 25 | I16: 2 | J16: Nível 2 | K16: =IF($A16=0,"-",CONCATENATE(C16&".",IF(AND($A$5>=2,$A16>=2),D16&".",""),IF(AND($A$5>=3,$A16>=3),E16&".",""),IF(AND($A$5>=4,$A16>=4),F16&".",""),IF($A16="S",G16&".",""))) -> 1.2. | N16: ADMINISTRAÇÃO LOCAL DA OBRA | O16: =Referencia.Unidade ->  | P16: =OFFSET(PLQ!$E$12,ROW($P16)-ROW(P$12),0) -> 0 | R16: BDI 1 | S16: =IF($A16="S",IF($Q$10="Preço Unitário (R$)",PO.CustoUnitario,ROUND(PO.CustoUnitario*(1+$Z16),15-13*$X$6)),0) -> 0 | T16: =IF($A16="S",VTOTAL1,IF($A16=0,0,ROUND(SomaAgrup,15-13*$X$7))) -> 5713.18 | U16: =IF($J16="","",IF($N16="","DESCRIÇÃO",IF(AND($J16="Serviço",$O16=""),"UNIDADE",IF($T16<=0,"SEM VALOR",IF(AND($Y16<>"",$Q16>$Y16),"ACIMA REF.",""))))) ->  | V16: =IF(OR($A16=0,$A16="S",$A16>CFF!$A$9),"",MAX(V$12:OFFSET(V16,-1,0))+1) -> 3 | W16: =IF(AND($J16="Serviço",$M16<>""),IF($L16="",$M16,CONCATENATE($L16,"-",$M16))) -> FALSE | X16: =IF(AND(Fonte<>"",Código<>""),MATCH(Fonte&" "&IF(Fonte="sinapi",SUBSTITUTE(SUBSTITUTE(Código,"/00","/"),"/0","/"),Código),INDIRECT("'[Referência "&_xlnm.Database&".xls]Banco'!$a:$a"),0),"X") -> X | Y16: =IF(Import.Desoneracao="sim",Referencia.Desonerado,Referencia.NaoDesonerado) -> 0 | Z16: =ROUND(IF(ISNUMBER(R16),R16,IF(LEFT(R16,3)="BDI",HLOOKUP(R16,DADOS!$T$37:$X$38,2,FALSE),0)),15-11*$X$5) -> 0.2963
A17: S | B17: 0 | C17: 1 | D17: 2 | E17: 0 | F17: 0 | G17: 1 | H17: 0 | I17: 0 | J17: Serviço | K17: 1.2.1. | L17: Composição | M17: ADM-001 | N17: =IF($A17="S",Referencia.Descricao,"(digite a descrição aqui)") -> ADMINISTRAÇÃO LOCAL | O17: =Referencia.Unidade -> UND | P17: =OFFSET(PLQ!$E$12,ROW($P17)-ROW(P$12),0) -> 1 | Q17: 4407.3 | R17: BDI 1 | S17: 5713.18 | T17: 5713.18 | V17: =IF(OR($A17=0,$A17="S",$A17>CFF!$A$9),"",MAX(V$12:OFFSET(V17,-1,0))+1) ->  | W17: Composição-ADM-001 | X17: 7 | Y17: 4407.3 | Z17: =ROUND(IF(ISNUMBER(R17),R17,IF(LEFT(R17,3)="BDI",HLOOKUP(R17,DADOS!$T$37:$X$38,2,FALSE),0)),15-11*$X$5) -> 0.2963
A18: 2 | B18: 3 | C18: 1 | D18: 3 | E18: 0 | F18: 0 | G18: 0 | H18: 23 | I18: 3 | J18: Nível 2 | K18: 1.3. | N18: TRANSPORTE DE MÁQUINAS E EQUIPAMENTOS | O18: =Referencia.Unidade ->  | P18: =OFFSET(PLQ!$E$12,ROW($P18)-ROW(P$12),0) -> 0 | R18: BDI 1 | S18: 0 | T18: 3119.24 | V18: =IF(OR($A18=0,$A18="S",$A18>CFF!$A$9),"",MAX(V$12:OFFSET(V18,-1,0))+1) -> 4 | W18: FALSE | X18: X | Y18: 0 | Z18: =ROUND(IF(ISNUMBER(R18),R18,IF(LEFT(R18,3)="BDI",HLOOKUP(R18,DADOS!$T$37:$X$38,2,FALSE),0)),15-11*$X$5) -> 0.2963
A19: S | B19: 0 | C19: 1 | D19: 3 | E19: 0 | F19: 0 | G19: 1 | H19: 0 | I19: 0 | J19: Serviço | K19: 1.3.1. | L19: Composição | M19: MOB-001 | N19: =IF($A19="S",Referencia.Descricao,"(digite a descrição aqui)") -> MOBILIZAÇÃO | O19: =Referencia.Unidade -> UND | P19: =OFFSET(PLQ!$E$12,ROW($P19)-ROW(P$12),0) -> 1 | Q19: 1203.13 | R19: BDI 1 | S19: 1559.62 | T19: 1559.62 | V19: =IF(OR($A19=0,$A19="S",$A19>CFF!$A$9),"",MAX(V$12:OFFSET(V19,-1,0))+1) ->  | W19: Composição-MOB-001 | X19: 8 | Y19: 1203.13 | Z19: =ROUND(IF(ISNUMBER(R19),R19,IF(LEFT(R19,3)="BDI",HLOOKUP(R19,DADOS!$T$37:$X$38,2,FALSE),0)),15-11*$X$5) -> 0.2963
A20: S | B20: 0 | C20: 1 | D20: 3 | E20: 0 | F20: 0 | G20: 2 | H20: 0 | I20: 0 | J20: Serviço | K20: 1.3.2. | L20: Composição | M20: DES-001 | N20: =IF($A20="S",Referencia.Descricao,"(digite a descrição aqui)") -> DESMOBILIZAÇÃO | O20: =Referencia.Unidade -> UND | P20: =OFFSET(PLQ!$E$12,ROW($P20)-ROW(P$12),0) -> 1 | Q20: 1203.13 | R20: BDI 1 | S20: 1559.62 | T20: 1559.62 | V20: =IF(OR($A20=0,$A20="S",$A20>CFF!$A$9),"",MAX(V$12:OFFSET(V20,-1,0))+1) ->  | W20: Composição-DES-001 | X20: 9 | Y20: 1203.13 | Z20: =ROUND(IF(ISNUMBER(R20),R20,IF(LEFT(R20,3)="BDI",HLOOKUP(R20,DADOS!$T$37:$X$38,2,FALSE),0)),15-11*$X$5) -> 0.2963
A21: 2 | B21: 6 | C21: 1 | D21: 4 | E21: 0 | F21: 0 | G21: 0 | H21: 20 | I21: 6 | J21: Nível 2 | K21: 1.4. | N21: SUBLEITO E BASE | O21: =Referencia.Unidade ->  | P21: =OFFSET(PLQ!$E$12,ROW($P21)-ROW(P$12),0) -> 0 | R21: BDI 1 | S21: 0 | T21: 27418.54 | V21: =IF(OR($A21=0,$A21="S",$A21>CFF!$A$9),"",MAX(V$12:OFFSET(V21,-1,0))+1) -> 5 | W21: FALSE | X21: X | Y21: 0 | Z21: =ROUND(IF(ISNUMBER(R21),R21,IF(LEFT(R21,3)="BDI",HLOOKUP(R21,DADOS!$T$37:$X$38,2,FALSE),0)),15-11*$X$5) -> 0.2963
A22: S | B22: 0 | C22: 1 | D22: 4 | E22: 0 | F22: 0 | G22: 1 | H22: 0 | I22: 0 | J22: Serviço | K22: 1.4.1. | L22: Composição | M22: TOP-001 | N22: =IF($A22="S",Referencia.Descricao,"(digite a descrição aqui)") -> SERVICOS TOPOGRAFICOS PARA PAVIMENTACAO, INCLUSIVE NOTA DE SERVICOS, ACOMPANHAMENTO E GREIDE | O22: =Referencia.Unidade -> M2 | P22: =OFFSET(PLQ!$E$12,ROW($P22)-ROW(P$12),0) -> 4044.7 | Q22: 0.35 | R22: BDI 1 | S22: 0.45 | T22: 1820.12 | V22: =IF(OR($A22=0,$A22="S",$A22>CFF!$A$9),"",MAX(V$12:OFFSET(V22,-1,0))+1) ->  | W22: Composição-TOP-001 | X22: 13 | Y22: 0.35 | Z22: =ROUND(IF(ISNUMBER(R22),R22,IF(LEFT(R22,3)="BDI",HLOOKUP(R22,DADOS!$T$37:$X$38,2,FALSE),0)),15-11*$X$5) -> 0.2963
A23: =CHOOSE(1+LOG(1+2*(J23="Meta")+4*(J23="Nível 2")+8*(J23="Nível 3")+16*(J23="Nível 4")+32*(J23="Serviço"),2),0,1,2,3,4,"S") -> S | B23: =IF(OR(A23="S",A23=0),0,IF(ISERROR(I23),H23,SMALL(H23:I23,1))) -> 0 | C23: =IF($A23=1,OFFSET(C23,-1,0)+1,OFFSET(C23,-1,0)) -> 1 | D23: =IF($A23=1,0,IF($A23=2,OFFSET(D23,-1,0)+1,OFFSET(D23,-1,0))) -> 4 | E23: =IF(AND($A23<=2,$A23<>0),0,IF($A23=3,OFFSET(E23,-1,0)+1,OFFSET(E23,-1,0))) -> 0 | F23: =IF(AND($A23<=3,$A23<>0),0,IF($A23=4,OFFSET(F23,-1,0)+1,OFFSET(F23,-1,0))) -> 0 | G23: =IF(AND($A23<=4,$A23<>0),0,IF($A23="S",OFFSET(G23,-1,0)+1,OFFSET(G23,-1,0))) -> 2 | H23: 0 | I23: 0 | J23: Serviço | K23: =IF($A23=0,"-",CONCATENATE(C23&".",IF(AND($A$5>=2,$A23>=2),D23&".",""),IF(AND($A$5>=3,$A23>=3),E23&".",""),IF(AND($A$5>=4,$A23>=4),F23&".",""),IF($A23="S",G23&".",""))) -> 1.4.2. | L23: SINAPI | M23: 100576 | N23: =IF($A23="S",Referencia.Descricao,"(digite a descrição aqui)") -> REGULARIZAÇÃO E COMPACTAÇÃO DE SUBLEITO DE SOLO PREDOMINANTEMENTE ARGILOSO. AF_11/2019 | O23: =Referencia.Unidade -> M2 | P23: =OFFSET(PLQ!$E$12,ROW($P23)-ROW(P$12),0) -> 4044.7 | Q23: 1.39 | R23: BDI 1 | S23: =IF($A23="S",IF($Q$10="Preço Unitário (R$)",PO.CustoUnitario,ROUND(PO.CustoUnitario*(1+$Z23),15-13*$X$6)),0) -> 1.8 | T23: =IF($A23="S",VTOTAL1,IF($A23=0,0,ROUND(SomaAgrup,15-13*$X$7))) -> 7280.46 | U23: =IF($J23="","",IF($N23="","DESCRIÇÃO",IF(AND($J23="Serviço",$O23=""),"UNIDADE",IF($T23<=0,"SEM VALOR",IF(AND($Y23<>"",$Q23>$Y23),"ACIMA REF.",""))))) ->  | V23: =IF(OR($A23=0,$A23="S",$A23>CFF!$A$9),"",MAX(V$12:OFFSET(V23,-1,0))+1) ->  | W23: =IF(AND($J23="Serviço",$M23<>""),IF($L23="",$M23,CONCATENATE($L23,"-",$M23))) -> SINAPI-100576 | X23: =IF(AND(Fonte<>"",Código<>""),MATCH(Fonte&" "&IF(Fonte="sinapi",SUBSTITUTE(SUBSTITUTE(Código,"/00","/"),"/0","/"),Código),INDIRECT("'[Referência "&_xlnm.Database&".xls]Banco'!$a:$a"),0),"X") -> 10482 | Y23: =IF(Import.Desoneracao="sim",Referencia.Desonerado,Referencia.NaoDesonerado) -> 1.39 | Z23: =ROUND(IF(ISNUMBER(R23),R23,IF(LEFT(R23,3)="BDI",HLOOKUP(R23,DADOS!$T$37:$X$38,2,FALSE),0)),15-11*$X$5) -> 0.2963
A24: S | B24: 0 | C24: 1 | D24: 4 | E24: 0 | F24: 0 | G24: 3 | H24: 0 | I24: 0 | J24: Serviço | K24: 1.4.3. | L24: SINAPI | M24: 74151/1 | N24: =IF($A24="S",Referencia.Descricao,"(digite a descrição aqui)") -> ESCAVACAO E CARGA MATERIAL 1A CATEGORIA, UTILIZANDO TRATOR DE ESTEIRAS DE 110 A 160HP COM LAMINA, PESO OPERACIONAL * 13T E PA CARREGADEIRA COM 170 HP. | O24: =Referencia.Unidade -> M3 | P24: =OFFSET(PLQ!$E$12,ROW($P24)-ROW(P$12),0) -> 758.38 | Q24: 2.6 | R24: BDI 1 | S24: 3.37 | T24: 2555.74 | V24: =IF(OR($A24=0,$A24="S",$A24>CFF!$A$9),"",MAX(V$12:OFFSET(V24,-1,0))+1) ->  | W24: SINAPI-74151/1 | X24: 10040 | Y24: 2.6 | Z24: =ROUND(IF(ISNUMBER(R24),R24,IF(LEFT(R24,3)="BDI",HLOOKUP(R24,DADOS!$T$37:$X$38,2,FALSE),0)),15-11*$X$5) -> 0.2963
A25: S | B25: 0 | C25: 1 | D25: 4 | E25: 0 | F25: 0 | G25: 4 | H25: 0 | I25: 0 | J25: Serviço | K25: 1.4.4. | L25: SINAPI | M25: 93589 | N25: =IF($A25="S",Referencia.Descricao,"(digite a descrição aqui)") -> TRANSPORTE COM CAMINHÃO BASCULANTE DE 10 M³, EM VIA URBANA EM REVESTIMENTO PRIMÁRIO (UNIDADE: M3XKM). AF_07/2020 | O25: =Referencia.Unidade -> M3XKM | P25: =OFFSET(PLQ!$E$12,ROW($P25)-ROW(P$12),0) -> 6067.04 | Q25: 1.37 | R25: BDI 1 | S25: 1.78 | T25: 10799.33 | V25: =IF(OR($A25=0,$A25="S",$A25>CFF!$A$9),"",MAX(V$12:OFFSET(V25,-1,0))+1) ->  | W25: SINAPI-93589 | X25: 11384 | Y25: 1.37 | Z25: =ROUND(IF(ISNUMBER(R25),R25,IF(LEFT(R25,3)="BDI",HLOOKUP(R25,DADOS!$T$37:$X$38,2,FALSE),0)),15-11*$X$5) -> 0.2963
A26: S | B26: 0 | C26: 1 | D26: 4 | E26: 0 | F26: 0 | G26: 5 | H26: 0 | I26: 0 | J26: Serviço | K26: 1.4.5. | L26: Composição | M26: COM-001 | N26: =IF($A26="S",Referencia.Descricao,"(digite a descrição aqui)") -> EXECUÇÃO E COMPACTAÇÃO DE BASE E OU SUB BASE COM SOLO ESTABILIZADO GRANULO METRICAMENTE - EXCLUSIVE ESCAVAÇÃO, CARGA E TRANSPORTE E SOLO | O26: =Referencia.Unidade -> M3 | P26: =OFFSET(PLQ!$E$12,ROW($P26)-ROW(P$12),0) -> 606.71 | Q26: 6.31 | R26: BDI 1 | S26: 8.18 | T26: 4962.89 | V26: =IF(OR($A26=0,$A26="S",$A26>CFF!$A$9),"",MAX(V$12:OFFSET(V26,-1,0))+1) ->  | W26: Composição-COM-001 | X26: 15 | Y26: 6.31 | Z26: =ROUND(IF(ISNUMBER(R26),R26,IF(LEFT(R26,3)="BDI",HLOOKUP(R26,DADOS!$T$37:$X$38,2,FALSE),0)),15-11*$X$5) -> 0.2963
A27: 2 | B27: 5 | C27: 1 | D27: 5 | E27: 0 | F27: 0 | G27: 0 | H27: 14 | I27: 5 | J27: Nível 2 | K27: 1.5. | N27: REVESTIMENTO ASFÁLTICO | O27: =Referencia.Unidade ->  | P27: =OFFSET(PLQ!$E$12,ROW($P27)-ROW(P$12),0) -> 0 | R27: BDI 1 | S27: 0 | T27: 157215.89 | V27: =IF(OR($A27=0,$A27="S",$A27>CFF!$A$9),"",MAX(V$12:OFFSET(V27,-1,0))+1) -> 6 | W27: FALSE | X27: X | Y27: 0 | Z27: =ROUND(IF(ISNUMBER(R27),R27,IF(LEFT(R27,3)="BDI",HLOOKUP(R27,DADOS!$T$37:$X$38,2,FALSE),0)),15-11*$X$5) -> 0.2963
A28: S | B28: 0 | C28: 1 | D28: 5 | E28: 0 | F28: 0 | G28: 1 | H28: 0 | I28: 0 | J28: Serviço | K28: 1.5.1. | L28: SINAPI | M28: 96401 | N28: =IF($A28="S",Referencia.Descricao,"(digite a descrição aqui)") -> EXECUÇÃO DE IMPRIMAÇÃO COM ASFALTO DILUÍDO CM-30. AF_11/2019 | O28: =Referencia.Unidade -> M2 | P28: =OFFSET(PLQ!$E$12,ROW($P28)-ROW(P$12),0) -> 3638.7 | Q28: 6.55 | R28: BDI 1 | S28: 8.49 | T28: 30892.56 | V28: =IF(OR($A28=0,$A28="S",$A28>CFF!$A$9),"",MAX(V$12:OFFSET(V28,-1,0))+1) ->  | W28: SINAPI-96401 | X28: 10494 | Y28: 6.6 | Z28: =ROUND(IF(ISNUMBER(R28),R28,IF(LEFT(R28,3)="BDI",HLOOKUP(R28,DADOS!$T$37:$X$38,2,FALSE),0)),15-11*$X$5) -> 0.2963
A29: S | B29: 0 | C29: 1 | D29: 5 | E29: 0 | F29: 0 | G29: 2 | H29: 0 | I29: 0 | J29: Serviço | K29: 1.5.2. | L29: SINAPI | M29: 96402 | N29: =IF($A29="S",Referencia.Descricao,"(digite a descrição aqui)") -> EXECUÇÃO DE PINTURA DE LIGAÇÃO COM EMULSÃO ASFÁLTICA RR-2C. AF_11/2019 | O29: =Referencia.Unidade -> M2 | P29: =OFFSET(PLQ!$E$12,ROW($P29)-ROW(P$12),0) -> 3638.7 | Q29: 1.54 | R29: BDI 1 | S29: 2 | T29: 7277.4 | V29: =IF(OR($A29=0,$A29="S",$A29>CFF!$A$9),"",MAX(V$12:OFFSET(V29,-1,0))+1) ->  | W29: SINAPI-96402 | X29: 10495 | Y29: 1.55 | Z29: =ROUND(IF(ISNUMBER(R29),R29,IF(LEFT(R29,3)="BDI",HLOOKUP(R29,DADOS!$T$37:$X$38,2,FALSE),0)),15-11*$X$5) -> 0.2963
A30: S | B30: 0 | C30: 1 | D30: 5 | E30: 0 | F30: 0 | G30: 3 | H30: 0 | I30: 0 | J30: Serviço | K30: 1.5.3. | L30: SINAPI | M30: 95303 | N30: =IF($A30="S",Referencia.Descricao,"(digite a descrição aqui)") -> TRANSPORTE COM CAMINHÃO BASCULANTE 10 M3 DE MASSA ASFALTICA PARA PAVIMENTAÇÃO URBANA | O30: =Referencia.Unidade -> M3XKM | P30: =OFFSET(PLQ!$E$12,ROW($P30)-ROW(P$12),0) -> 5003.22 | Q30: 0.81 | R30: BDI 1 | S30: 1.05 | T30: 5253.38 | V30: =IF(OR($A30=0,$A30="S",$A30>CFF!$A$9),"",MAX(V$12:OFFSET(V30,-1,0))+1) ->  | W30: SINAPI-95303 | X30: 10266 | Y30: 0.81 | Z30: =ROUND(IF(ISNUMBER(R30),R30,IF(LEFT(R30,3)="BDI",HLOOKUP(R30,DADOS!$T$37:$X$38,2,FALSE),0)),15-11*$X$5) -> 0.2963
A31: S | B31: 0 | C31: 1 | D31: 5 | E31: 0 | F31: 0 | G31: 4 | H31: 0 | I31: 0 | J31: Serviço | K31: 1.5.4. | L31: SINAPI | M31: 95995 | N31: =IF($A31="S",Referencia.Descricao,"(digite a descrição aqui)") -> EXECUÇÃO DE PAVIMENTO COM APLICAÇÃO DE CONCRETO ASFÁLTICO, CAMADA DE ROLAMENTO - EXCLUSIVE CARGA E TRANSPORTE. AF_11/2019 | O31: =Referencia.Unidade -> M3 | P31: =OFFSET(PLQ!$E$12,ROW($P31)-ROW(P$12),0) -> 90.97 | Q31: 964.96 | R31: BDI 1 | S31: 1250.88 | T31: 113792.55 | V31: =IF(OR($A31=0,$A31="S",$A31>CFF!$A$9),"",MAX(V$12:OFFSET(V31,-1,0))+1) ->  | W31: SINAPI-95995 | X31: 10548 | Y31: 993.9 | Z31: =ROUND(IF(ISNUMBER(R31),R31,IF(LEFT(R31,3)="BDI",HLOOKUP(R31,DADOS!$T$37:$X$38,2,FALSE),0)),15-11*$X$5) -> 0.2963
A32: 2 | B32: 2 | C32: 1 | D32: 6 | E32: 0 | F32: 0 | G32: 0 | H32: 9 | I32: 2 | J32: Nível 2 | K32: 1.6. | N32: MEIO-FIO/SARJETAS | P32: =OFFSET(PLQ!$E$12,ROW($P32)-ROW(P$12),0) -> 0 | R32: BDI 1 | S32: 0 | T32: 27892.2 | V32: =IF(OR($A32=0,$A32="S",$A32>CFF!$A$9),"",MAX(V$12:OFFSET(V32,-1,0))+1) -> 7 | W32: FALSE | X32: X | Y32: 0 | Z32: =ROUND(IF(ISNUMBER(R32),R32,IF(LEFT(R32,3)="BDI",HLOOKUP(R32,DADOS!$T$37:$X$38,2,FALSE),0)),15-11*$X$5) -> 0.2963
A33: S | B33: 0 | C33: 1 | D33: 6 | E33: 0 | F33: 0 | G33: 1 | H33: 0 | I33: 0 | J33: Serviço | K33: 1.6.1. | L33: SINAPI | M33: 94267 | N33: =IF($A33="S",Referencia.Descricao,"(digite a descrição aqui)") -> GUIA (MEIO-FIO) E SARJETA CONJUGADOS DE CONCRETO, MOLDADA IN LOCO EM TRECHO RETO COM EXTRUSORA, 45 CM BASE (15 CM BASE DA GUIA + 30 CM BASE DA SARJETA) X 22 CM ALTURA. AF_06/2016 | O33: =Referencia.Unidade -> M | P33: =OFFSET(PLQ!$E$12,ROW($P33)-ROW(P$12),0) -> 812 | Q33: 26.5 | R33: BDI 1 | S33: 34.35 | T33: 27892.2 | V33: =IF(OR($A33=0,$A33="S",$A33>CFF!$A$9),"",MAX(V$12:OFFSET(V33,-1,0))+1) ->  | W33: SINAPI-94267 | X33: 6916 | Y33: 33.11 | Z33: =ROUND(IF(ISNUMBER(R33),R33,IF(LEFT(R33,3)="BDI",HLOOKUP(R33,DADOS!$T$37:$X$38,2,FALSE),0)),15-11*$X$5) -> 0.2963
A34: 2 | B34: 3 | C34: 1 | D34: 7 | E34: 0 | F34: 0 | G34: 0 | H34: 7 | I34: 3 | J34: Nível 2 | K34: 1.7. | N34: CALÇADAS/REBAIXAMENTOS | P34: =OFFSET(PLQ!$E$12,ROW($P34)-ROW(P$12),0) -> 0 | R34: BDI 1 | S34: 0 | T34: 33292.27 | V34: =IF(OR($A34=0,$A34="S",$A34>CFF!$A$9),"",MAX(V$12:OFFSET(V34,-1,0))+1) -> 8 | W34: FALSE | X34: X | Y34: 0 | Z34: =ROUND(IF(ISNUMBER(R34),R34,IF(LEFT(R34,3)="BDI",HLOOKUP(R34,DADOS!$T$37:$X$38,2,FALSE),0)),15-11*$X$5) -> 0.2963
A35: S | B35: 0 | C35: 1 | D35: 7 | E35: 0 | F35: 0 | G35: 1 | H35: 0 | I35: 0 | J35: Serviço | K35: 1.7.1. | L35: SINAPI | M35: 94991 | N35: =IF($A35="S",Referencia.Descricao,"(digite a descrição aqui)") -> EXECUÇÃO DE PASSEIO (CALÇADA) OU PISO DE CONCRETO COM CONCRETO MOLDADO IN LOCO, USINADO, ACABAMENTO CONVENCIONAL, NÃO ARMADO. AF_07/2016 | O35: =Referencia.Unidade -> M3 | P35: =OFFSET(PLQ!$E$12,ROW($P35)-ROW(P$12),0) -> 63.23 | Q35: 361.8 | R35: BDI 1 | S35: 469 | T35: 29654.87 | V35: =IF(OR($A35=0,$A35="S",$A35>CFF!$A$9),"",MAX(V$12:OFFSET(V35,-1,0))+1) ->  | W35: SINAPI-94991 | X35: 10742 | Y35: 449.27 | Z35: =ROUND(IF(ISNUMBER(R35),R35,IF(LEFT(R35,3)="BDI",HLOOKUP(R35,DADOS!$T$37:$X$38,2,FALSE),0)),15-11*$X$5) -> 0.2963
A36: S | B36: 0 | C36: 1 | D36: 7 | E36: 0 | F36: 0 | G36: 2 | H36: 0 | I36: 0 | J36: Serviço | K36: 1.7.2. | L36: Composição | M36: RAM-001 | N36: =IF($A36="S",Referencia.Descricao,"(digite a descrição aqui)") -> RAMPA DE CONCRETO - VER DETALHAMENTO NOS PROJETOS | O36: =Referencia.Unidade -> UND | P36: =OFFSET(PLQ!$E$12,ROW($P36)-ROW(P$12),0) -> 10 | Q36: 280.6 | R36: BDI 1 | S36: 363.74 | T36: 3637.4 | V36: =IF(OR($A36=0,$A36="S",$A36>CFF!$A$9),"",MAX(V$12:OFFSET(V36,-1,0))+1) ->  | W36: Composição-RAM-001 | X36: 10 | Y36: 280.6 | Z36: =ROUND(IF(ISNUMBER(R36),R36,IF(LEFT(R36,3)="BDI",HLOOKUP(R36,DADOS!$T$37:$X$38,2,FALSE),0)),15-11*$X$5) -> 0.2963
A37: 2 | B37: 4 | C37: 1 | D37: 8 | E37: 0 | F37: 0 | G37: 0 | H37: 4 | J37: Nível 2 | K37: 1.8. | N37: SINALIZAÇÃO VIÁRIA | P37: =OFFSET(PLQ!$E$12,ROW($P37)-ROW(P$12),0) -> 0 | R37: BDI 1 | S37: 0 | T37: 6719.5 | V37: =IF(OR($A37=0,$A37="S",$A37>CFF!$A$9),"",MAX(V$12:OFFSET(V37,-1,0))+1) -> 9 | W37: FALSE | X37: X | Y37: 0 | Z37: =ROUND(IF(ISNUMBER(R37),R37,IF(LEFT(R37,3)="BDI",HLOOKUP(R37,DADOS!$T$37:$X$38,2,FALSE),0)),15-11*$X$5) -> 0.2963
A38: S | B38: 0 | C38: 1 | D38: 8 | E38: 0 | F38: 0 | G38: 1 | H38: 0 | I38: 0 | J38: Serviço | K38: 1.8.1. | L38: SINAPI | M38: 72947 | N38: =IF($A38="S",Referencia.Descricao,"(digite a descrição aqui)") -> SINALIZACAO HORIZONTAL COM TINTA RETRORREFLETIVA A BASE DE RESINA ACRILICA COM MICROESFERAS DE VIDRO | O38: =Referencia.Unidade -> M2 | P38: =OFFSET(PLQ!$E$12,ROW($P38)-ROW(P$12),0) -> 108.88 | Q38: 15.12 | R38: BDI 1 | S38: 19.6 | T38: 2134.05 | V38: =IF(OR($A38=0,$A38="S",$A38>CFF!$A$9),"",MAX(V$12:OFFSET(V38,-1,0))+1) ->  | W38: SINAPI-72947 | X38: 10546 | Y38: 15.12 | Z38: =ROUND(IF(ISNUMBER(R38),R38,IF(LEFT(R38,3)="BDI",HLOOKUP(R38,DADOS!$T$37:$X$38,2,FALSE),0)),15-11*$X$5) -> 0.2963
A39: S | B39: 0 | C39: 1 | D39: 8 | E39: 0 | F39: 0 | G39: 2 | H39: 0 | I39: 0 | J39: Serviço | K39: 1.8.2. | L39: Composição | M39: PLA-001 | N39: =IF($A39="S",Referencia.Descricao,"(digite a descrição aqui)") -> PLACA DE SINALIZAÇÃO VIÁRIA OCTOGONAL L=25CM, COM SUPORTE DE AÇO GALVANIZADO (D=50MM E H= 3 METROS), INCLUSIVE BASE DE CONCRETO NÃO ESTRUTURAL - PARADA OBRIGATÓRIA | O39: =Referencia.Unidade -> UND | P39: =OFFSET(PLQ!$E$12,ROW($P39)-ROW(P$12),0) -> 10 | Q39: 310.07 | R39: BDI 1 | S39: 401.94 | T39: 4019.4 | V39: =IF(OR($A39=0,$A39="S",$A39>CFF!$A$9),"",MAX(V$12:OFFSET(V39,-1,0))+1) ->  | W39: Composição-PLA-001 | X39: 11 | Y39: 322.06 | Z39: =ROUND(IF(ISNUMBER(R39),R39,IF(LEFT(R39,3)="BDI",HLOOKUP(R39,DADOS!$T$37:$X$38,2,FALSE),0)),15-11*$X$5) -> 0.2963
A40: S | B40: 0 | C40: 1 | D40: 8 | E40: 0 | F40: 0 | G40: 3 | H40: 0 | I40: 0 | J40: Serviço | K40: 1.8.3. | L40: Composição | M40: PLA-003 | N40: =IF($A40="S",Referencia.Descricao,"(digite a descrição aqui)") -> PLACA ESMALTADA PARA IDENTIFICAÇÃO NR DE RUA, DIMENSÕES 45X25CM | O40: =Referencia.Unidade -> UN | P40: =OFFSET(PLQ!$E$12,ROW($P40)-ROW(P$12),0) -> 5 | Q40: 87.33 | R40: BDI 1 | S40: 113.21 | T40: 566.05 | V40: =IF(OR($A40=0,$A40="S",$A40>CFF!$A$9),"",MAX(V$12:OFFSET(V40,-1,0))+1) ->  | W40: Composição-PLA-003 | X40: 14 | Y40: 88.27 | Z40: =ROUND(IF(ISNUMBER(R40),R40,IF(LEFT(R40,3)="BDI",HLOOKUP(R40,DADOS!$T$37:$X$38,2,FALSE),0)),15-11*$X$5) -> 0.2963
A41: -1 | C41: 0 | D41: 0 | E41: 0 | F41: 0 | G41: 0
K42: Encargos sociais: | M42: Para elaboração deste orçamento, foram utilizados os encargos sociais do SINAPI para a Unidade da Federação indicada.
K44: Observações:
K49: =IF(AND($X$3=FALSE,$X$4=FALSE,$X$5=FALSE,$X$6=FALSE,$X$7=FALSE),"Não foi considerado arredondamento nos valores da planilha.",CONCATENATE("Foi considerado arredondamento de duas casas decimais para ",IF($X$3=TRUE,"Quantidade; ",""),IF($X$4=TRUE,"Custo Unitário; ",""),IF($X$5=TRUE,"BDI; ",""),IF($X$6=TRUE,"Preço Unitário; ",""),IF($X$7=TRUE,"Preço Total.",""))) -> Foi considerado arredondamento de duas casas decimais para Quantidade; Custo Unitário; BDI; Preço Unitário; Preço Total.
K52: =Import.Município -> Veríssimo/MG
K53: Local
K55: 2020-05-29
K56: Data

Sheet PLQ
E1: PLQ - | F1: PLANILHA DE LEVANTAMENTO DE QUANTIDADES | P1: PLANILHA DE LEVANTAMENTO DE QUANTIDADES
E7: =OFFSET(PO!$P$12,ROW($E7)-ROW(E$12),0) -> 0
E9: - | F9: Única | G9: R. Alírio Adail França | H9: R. 13 de Maio | I9: R. Melo Franco | J9: R. Pe. Davi | K9: R. 15 de Novembro
A10: Nível | B10: Item | C10: Descrição | D10: Unid. | E10: Quantidade | F10: =IF(OFFSET(F10,0,-1)="Quantidade",1,OFFSET(F10,0,-1)+1) -> 1 | G10: 2 | H10: 3 | I10: 4 | J10: 5 | K10: 6 | L10: 7 | M10: 8 | N10: 9 | O10: 10 | P10: 11 | Q10: 12 | R10: 13 | S10: 14 | T10: 15 | U10: 16 | V10: 17 | W10: 18 | X10: 19 | Y10: 20 | AE10: =IF(OFFSET(AE10,0,-1)="Quantidade",1,OFFSET(AE10,0,-1)+1) -> 1
A11: =OFFSET(PO!J$12,ROW(A11)-ROW($A$12),0) -> Serviço | B11: =IF($A11=0,"",OFFSET(PO!K$12,ROW(B11)-ROW(B$12),0)) ->  | C11: =IF(OFFSET(PO!N$12,ROW(C11)-ROW(C$12),0)=0,"",OFFSET(PO!N$12,ROW(C11)-ROW(C$12),0)) ->  | D11: =IF(OFFSET(PO!O$12,ROW(D11)-ROW(D$12),0)=0,"",OFFSET(PO!O$12,ROW(D11)-ROW(D$12),0)) ->  | E11: =IF($A11<>"Serviço",0,ROUND(SUMIF($F$9:$Z$9,"<>",$F11:$Z11),15-13*PO!$X$3)) -> 0
A12: =PO!J12 -> LOTE | C12: =PO!N12 -> Pavimentação de Vias Públicas
A13: =OFFSET(PO!J$12,ROW(A13)-ROW($A$12),0) -> Meta | B13: =IF($A13=0,"",OFFSET(PO!K$12,ROW(B13)-ROW(B$12),0)) -> 1. | C13: =IF(OFFSET(PO!N$12,ROW(C13)-ROW(C$12),0)=0,"",OFFSET(PO!N$12,ROW(C13)-ROW(C$12),0)) -> Pavimentação de Vias Públicas | D13: =IF(OFFSET(PO!O$12,ROW(D13)-ROW(D$12),0)=0,"",OFFSET(PO!O$12,ROW(D13)-ROW(D$12),0)) ->  | E13: =IF($A13<>"Serviço",0,ROUND(SUMIF($F$9:$Z$9,"<>",$F13:$Z13),15-13*PO!$X$3)) -> 0
A14: =OFFSET(PO!J$12,ROW(A14)-ROW($A$12),0) -> Nível 2 | B14: =IF($A14=0,"",OFFSET(PO!K$12,ROW(B14)-ROW(B$12),0)) -> 1.1. | C14: =IF(OFFSET(PO!N$12,ROW(C14)-ROW(C$12),0)=0,"",OFFSET(PO!N$12,ROW(C14)-ROW(C$12),0)) -> SERVIÇOS PRELIMINARES | D14: =IF(OFFSET(PO!O$12,ROW(D14)-ROW(D$12),0)=0,"",OFFSET(PO!O$12,ROW(D14)-ROW(D$12),0)) ->  | E14: =IF($A14<>"Serviço",0,ROUND(SUMIF($F$9:$Z$9,"<>",$F14:$Z14),15-13*PO!$X$3)) -> 0
A15: =OFFSET(PO!J$12,ROW(A15)-ROW($A$12),0) -> Serviço | B15: =IF($A15=0,"",OFFSET(PO!K$12,ROW(B15)-ROW(B$12),0)) -> 1.1.1. | C15: =IF(OFFSET(PO!N$12,ROW(C15)-ROW(C$12),0)=0,"",OFFSET(PO!N$12,ROW(C15)-ROW(C$12),0)) -> PLACA DA OBRA - MODELO GOVERNO FEDERAL | D15: =IF(OFFSET(PO!O$12,ROW(D15)-ROW(D$12),0)=0,"",OFFSET(PO!O$12,ROW(D15)-ROW(D$12),0)) -> M2 | E15: =IF($A15<>"Serviço",0,ROUND(SUMIF($F$9:$Z$9,"<>",$F15:$Z15),15-13*PO!$X$3)) -> 4.5 | F15: 4.5
A16: =OFFSET(PO!J$12,ROW(A16)-ROW($A$12),0) -> Nível 2 | B16: =IF($A16=0,"",OFFSET(PO!K$12,ROW(B16)-ROW(B$12),0)) -> 1.2. | C16: =IF(OFFSET(PO!N$12,ROW(C16)-ROW(C$12),0)=0,"",OFFSET(PO!N$12,ROW(C16)-ROW(C$12),0)) -> ADMINISTRAÇÃO LOCAL DA OBRA | D16: =IF(OFFSET(PO!O$12,ROW(D16)-ROW(D$12),0)=0,"",OFFSET(PO!O$12,ROW(D16)-ROW(D$12),0)) ->  | E16: =IF($A16<>"Serviço",0,ROUND(SUMIF($F$9:$Z$9,"<>",$F16:$Z16),15-13*PO!$X$3)) -> 0
A17: =OFFSET(PO!J$12,ROW(A17)-ROW($A$12),0) -> Serviço | B17: =IF($A17=0,"",OFFSET(PO!K$12,ROW(B17)-ROW(B$12),0)) -> 1.2.1. | C17: =IF(OFFSET(PO!N$12,ROW(C17)-ROW(C$12),0)=0,"",OFFSET(PO!N$12,ROW(C17)-ROW(C$12),0)) -> ADMINISTRAÇÃO LOCAL | D17: =IF(OFFSET(PO!O$12,ROW(D17)-ROW(D$12),0)=0,"",OFFSET(PO!O$12,ROW(D17)-ROW(D$12),0)) -> UND | E17: =IF($A17<>"Serviço",0,ROUND(SUMIF($F$9:$Z$9,"<>",$F17:$Z17),15-13*PO!$X$3)) -> 1 | F17: 1
A18: =OFFSET(PO!J$12,ROW(A18)-ROW($A$12),0) -> Nível 2 | B18: =IF($A18=0,"",OFFSET(PO!K$12,ROW(B18)-ROW(B$12),0)) -> 1.3. | C18: =IF(OFFSET(PO!N$12,ROW(C18)-ROW(C$12),0)=0,"",OFFSET(PO!N$12,ROW(C18)-ROW(C$12),0)) -> TRANSPORTE DE MÁQUINAS E EQUIPAMENTOS | D18: =IF(OFFSET(PO!O$12,ROW(D18)-ROW(D$12),0)=0,"",OFFSET(PO!O$12,ROW(D18)-ROW(D$12),0)) ->  | E18: =IF($A18<>"Serviço",0,ROUND(SUMIF($F$9:$Z$9,"<>",$F18:$Z18),15-13*PO!$X$3)) -> 0
A19: =OFFSET(PO!J$12,ROW(A19)-ROW($A$12),0) -> Serviço | B19: =IF($A19=0,"",OFFSET(PO!K$12,ROW(B19)-ROW(B$12),0)) -> 1.3.1. | C19: =IF(OFFSET(PO!N$12,ROW(C19)-ROW(C$12),0)=0,"",OFFSET(PO!N$12,ROW(C19)-ROW(C$12),0)) -> MOBILIZAÇÃO | D19: =IF(OFFSET(PO!O$12,ROW(D19)-ROW(D$12),0)=0,"",OFFSET(PO!O$12,ROW(D19)-ROW(D$12),0)) -> UND | E19: =IF($A19<>"Serviço",0,ROUND(SUMIF($F$9:$Z$9,"<>",$F19:$Z19),15-13*PO!$X$3)) -> 1 | F19: 1
A20: =OFFSET(PO!J$12,ROW(A20)-ROW($A$12),0) -> Serviço | B20: =IF($A20=0,"",OFFSET(PO!K$12,ROW(B20)-ROW(B$12),0)) -> 1.3.2. | C20: =IF(OFFSET(PO!N$12,ROW(C20)-ROW(C$12),0)=0,"",OFFSET(PO!N$12,ROW(C20)-ROW(C$12),0)) -> DESMOBILIZAÇÃO | D20: =IF(OFFSET(PO!O$12,ROW(D20)-ROW(D$12),0)=0,"",OFFSET(PO!O$12,ROW(D20)-ROW(D$12),0)) -> UND | E20: =IF($A20<>"Serviço",0,ROUND(SUMIF($F$9:$Z$9,"<>",$F20:$Z20),15-13*PO!$X$3)) -> 1 | F20: 1
A21: =OFFSET(PO!J$12,ROW(A21)-ROW($A$12),0) -> Nível 2 | B21: =IF($A21=0,"",OFFSET(PO!K$12,ROW(B21)-ROW(B$12),0)) -> 1.4. | C21: =IF(OFFSET(PO!N$12,ROW(C21)-ROW(C$12),0)=0,"",OFFSET(PO!N$12,ROW(C21)-ROW(C$12),0)) -> SUBLEITO E BASE | D21: =IF(OFFSET(PO!O$12,ROW(D21)-ROW(D$12),0)=0,"",OFFSET(PO!O$12,ROW(D21)-ROW(D$12),0)) ->  | E21: =IF($A21<>"Serviço",0,ROUND(SUMIF($F$9:$Z$9,"<>",$F21:$Z21),15-13*PO!$X$3)) -> 0
A22: =OFFSET(PO!J$12,ROW(A22)-ROW($A$12),0) -> Serviço | B22: =IF($A22=0,"",OFFSET(PO!K$12,ROW(B22)-ROW(B$12),0)) -> 1.4.1. | C22: =IF(OFFSET(PO!N$12,ROW(C22)-ROW(C$12),0)=0,"",OFFSET(PO!N$12,ROW(C22)-ROW(C$12),0)) -> SERVICOS TOPOGRAFICOS PARA PAVIMENTACAO, INCLUSIVE NOTA DE SERVICOS, ACOMPANHAMENTO E GREIDE | D22: =IF(OFFSET(PO!O$12,ROW(D22)-ROW(D$12),0)=0,"",OFFSET(PO!O$12,ROW(D22)-ROW(D$12),0)) -> M2 | E22: =IF($A22<>"Serviço",0,ROUND(SUMIF($F$9:$Z$9,"<>",$F22:$Z22),15-13*PO!$X$3)) -> 4044.7 | G22: 378.3 | H22: 873.6 | I22: 967.2 | J22: 998.4 | K22: 827.2
A23: =OFFSET(PO!J$12,ROW(A23)-ROW($A$12),0) -> Serviço | B23: =IF($A23=0,"",OFFSET(PO!K$12,ROW(B23)-ROW(B$12),0)) -> 1.4.2. | C23: =IF(OFFSET(PO!N$12,ROW(C23)-ROW(C$12),0)=0,"",OFFSET(PO!N$12,ROW(C23)-ROW(C$12),0)) -> REGULARIZAÇÃO E COMPACTAÇÃO DE SUBLEITO DE SOLO PREDOMINANTEMENTE ARGILOSO. AF_11/2019 | D23: =IF(OFFSET(PO!O$12,ROW(D23)-ROW(D$12),0)=0,"",OFFSET(PO!O$12,ROW(D23)-ROW(D$12),0)) -> M2 | E23: =IF($A23<>"Serviço",0,ROUND(SUMIF($F$9:$Z$9,"<>",$F23:$Z23),15-13*PO!$X$3)) -> 4044.7 | G23: 378.3 | H23: 873.6 | I23: 967.2 | J23: 998.4 | K23: 827.2
A24: =OFFSET(PO!J$12,ROW(A24)-ROW($A$12),0) -> Serviço | B24: =IF($A24=0,"",OFFSET(PO!K$12,ROW(B24)-ROW(B$12),0)) -> 1.4.3. | C24: =IF(OFFSET(PO!N$12,ROW(C24)-ROW(C$12),0)=0,"",OFFSET(PO!N$12,ROW(C24)-ROW(C$12),0)) -> ESCAVACAO E CARGA MATERIAL 1A CATEGORIA, UTILIZANDO TRATOR DE ESTEIRAS DE 110 A 160HP COM LAMINA, PESO OPERACIONAL * 13T E PA CARREGADEIRA COM 170 HP. | D24: =IF(OFFSET(PO!O$12,ROW(D24)-ROW(D$12),0)=0,"",OFFSET(PO!O$12,ROW(D24)-ROW(D$12),0)) -> M3 | E24: =IF($A24<>"Serviço",0,ROUND(SUMIF($F$9:$Z$9,"<>",$F24:$Z24),15-13*PO!$X$3)) -> 758.38 | G24: 70.93 | H24: 163.8 | I24: 181.35 | J24: 187.2 | K24: 155.1
A25: =OFFSET(PO!J$12,ROW(A25)-ROW($A$12),0) -> Serviço | B25: =IF($A25=0,"",OFFSET(PO!K$12,ROW(B25)-ROW(B$12),0)) -> 1.4.4. | C25: =IF(OFFSET(PO!N$12,ROW(C25)-ROW(C$12),0)=0,"",OFFSET(PO!N$12,ROW(C25)-ROW(C$12),0)) -> TRANSPORTE COM CAMINHÃO BASCULANTE DE 10 M³, EM VIA URBANA EM REVESTIMENTO PRIMÁRIO (UNIDADE: M3XKM). AF_07/2020 | D25: =IF(OFFSET(PO!O$12,ROW(D25)-ROW(D$12),0)=0,"",OFFSET(PO!O$12,ROW(D25)-ROW(D$12),0)) -> M3XKM | E25: =IF($A25<>"Serviço",0,ROUND(SUMIF($F$9:$Z$9,"<>",$F25:$Z25),15-13*PO!$X$3)) -> 6067.04 | G25: 567.44 | H25: 1310.4 | I25: 1450.8 | J25: 1497.6 | K25: 1240.8
A26: =OFFSET(PO!J$12,ROW(A26)-ROW($A$12),0) -> Serviço | B26: =IF($A26=0,"",OFFSET(PO!K$12,ROW(B26)-ROW(B$12),0)) -> 1.4.5. | C26: =IF(OFFSET(PO!N$12,ROW(C26)-ROW(C$12),0)=0,"",OFFSET(PO!N$12,ROW(C26)-ROW(C$12),0)) -> EXECUÇÃO E COMPACTAÇÃO DE BASE E OU SUB BASE COM SOLO ESTABILIZADO GRANULO METRICAMENTE - EXCLUSIVE ESCAVAÇÃO, CARGA E TRANSPORTE E SOLO | D26: =IF(OFFSET(PO!O$12,ROW(D26)-ROW(D$12),0)=0,"",OFFSET(PO!O$12,ROW(D26)-ROW(D$12),0)) -> M3 | E26: =IF($A26<>"Serviço",0,ROUND(SUMIF($F$9:$Z$9,"<>",$F26:$Z26),15-13*PO!$X$3)) -> 606.71 | G26: 56.75 | H26: 131.04 | I26: 145.08 | J26: 149.76 | K26: 124.08
A27: =OFFSET(PO!J$12,ROW(A27)-ROW($A$12),0) -> Nível 2 | B27: =IF($A27=0,"",OFFSET(PO!K$12,ROW(B27)-ROW(B$12),0)) -> 1.5. | C27: =IF(OFFSET(PO!N$12,ROW(C27)-ROW(C$12),0)=0,"",OFFSET(PO!N$12,ROW(C27)-ROW(C$12),0)) -> REVESTIMENTO ASFÁLTICO | D27: =IF(OFFSET(PO!O$12,ROW(D27)-ROW(D$12),0)=0,"",OFFSET(PO!O$12,ROW(D27)-ROW(D$12),0)) ->  | E27: =IF($A27<>"Serviço",0,ROUND(SUMIF($F$9:$Z$9,"<>",$F27:$Z27),15-13*PO!$X$3)) -> 0
A28: =OFFSET(PO!J$12,ROW(A28)-ROW($A$12),0) -> Serviço | B28: =IF($A28=0,"",OFFSET(PO!K$12,ROW(B28)-ROW(B$12),0)) -> 1.5.1. | C28: =IF(OFFSET(PO!N$12,ROW(C28)-ROW(C$12),0)=0,"",OFFSET(PO!N$12,ROW(C28)-ROW(C$12),0)) -> EXECUÇÃO DE IMPRIMAÇÃO COM ASFALTO DILUÍDO CM-30. AF_11/2019 | D28: =IF(OFFSET(PO!O$12,ROW(D28)-ROW(D$12),0)=0,"",OFFSET(PO!O$12,ROW(D28)-ROW(D$12),0)) -> M2 | E28: =IF($A28<>"Serviço",0,ROUND(SUMIF($F$9:$Z$9,"<>",$F28:$Z28),15-13*PO!$X$3)) -> 3638.7 | G28: 339.3 | H28: 789.6 | I28: 874.2 | J28: 902.4 | K28: 733.2
A29: =OFFSET(PO!J$12,ROW(A29)-ROW($A$12),0) -> Serviço | B29: =IF($A29=0,"",OFFSET(PO!K$12,ROW(B29)-ROW(B$12),0)) -> 1.5.2. | C29: =IF(OFFSET(PO!N$12,ROW(C29)-ROW(C$12),0)=0,"",OFFSET(PO!N$12,ROW(C29)-ROW(C$12),0)) -> EXECUÇÃO DE PINTURA DE LIGAÇÃO COM EMULSÃO ASFÁLTICA RR-2C. AF_11/2019 | D29: =IF(OFFSET(PO!O$12,ROW(D29)-ROW(D$12),0)=0,"",OFFSET(PO!O$12,ROW(D29)-ROW(D$12),0)) -> M2 | E29: =IF($A29<>"Serviço",0,ROUND(SUMIF($F$9:$Z$9,"<>",$F29:$Z29),15-13*PO!$X$3)) -> 3638.7 | G29: 339.3 | H29: 789.6 | I29: 874.2 | J29: 902.4 | K29: 733.2
A30: =OFFSET(PO!J$12,ROW(A30)-ROW($A$12),0) -> Serviço | B30: =IF($A30=0,"",OFFSET(PO!K$12,ROW(B30)-ROW(B$12),0)) -> 1.5.3. | C30: =IF(OFFSET(PO!N$12,ROW(C30)-ROW(C$12),0)=0,"",OFFSET(PO!N$12,ROW(C30)-ROW(C$12),0)) -> TRANSPORTE COM CAMINHÃO BASCULANTE 10 M3 DE MASSA ASFALTICA PARA PAVIMENTAÇÃO URBANA | D30: =IF(OFFSET(PO!O$12,ROW(D30)-ROW(D$12),0)=0,"",OFFSET(PO!O$12,ROW(D30)-ROW(D$12),0)) -> M3XKM | E30: =IF($A30<>"Serviço",0,ROUND(SUMIF($F$9:$Z$9,"<>",$F30:$Z30),15-13*PO!$X$3)) -> 5003.22 | G30: 466.54 | H30: 1085.7 | I30: 1202.03 | J30: 1240.8 | K30: 1008.15
A31: =OFFSET(PO!J$12,ROW(A31)-ROW($A$12),0) -> Serviço | B31: =IF($A31=0,"",OFFSET(PO!K$12,ROW(B31)-ROW(B$12),0)) -> 1.5.4. | C31: =IF(OFFSET(PO!N$12,ROW(C31)-ROW(C$12),0)=0,"",OFFSET(PO!N$12,ROW(C31)-ROW(C$12),0)) -> EXECUÇÃO DE PAVIMENTO COM APLICAÇÃO DE CONCRETO ASFÁLTICO, CAMADA DE ROLAMENTO - EXCLUSIVE CARGA E TRANSPORTE. AF_11/2019 | D31: =IF(OFFSET(PO!O$12,ROW(D31)-ROW(D$12),0)=0,"",OFFSET(PO!O$12,ROW(D31)-ROW(D$12),0)) -> M3 | E31: =IF($A31<>"Serviço",0,ROUND(SUMIF($F$9:$Z$9,"<>",$F31:$Z31),15-13*PO!$X$3)) -> 90.97 | G31: 8.48 | H31: 19.74 | I31: 21.86 | J31: 22.56 | K31: 18.33
A32: =OFFSET(PO!J$12,ROW(A32)-ROW($A$12),0) -> Nível 2 | B32: =IF($A32=0,"",OFFSET(PO!K$12,ROW(B32)-ROW(B$12),0)) -> 1.6. | C32: =IF(OFFSET(PO!N$12,ROW(C32)-ROW(C$12),0)=0,"",OFFSET(PO!N$12,ROW(C32)-ROW(C$12),0)) -> MEIO-FIO/SARJETAS | D32: =IF(OFFSET(PO!O$12,ROW(D32)-ROW(D$12),0)=0,"",OFFSET(PO!O$12,ROW(D32)-ROW(D$12),0)) ->  | E32: =IF($A32<>"Serviço",0,ROUND(SUMIF($F$9:$Z$9,"<>",$F32:$Z32),15-13*PO!$X$3)) -> 0
A33: =OFFSET(PO!J$12,ROW(A33)-ROW($A$12),0) -> Serviço | B33: =IF($A33=0,"",OFFSET(PO!K$12,ROW(B33)-ROW(B$12),0)) -> 1.6.1. | C33: =IF(OFFSET(PO!N$12,ROW(C33)-ROW(C$12),0)=0,"",OFFSET(PO!N$12,ROW(C33)-ROW(C$12),0)) -> GUIA (MEIO-FIO) E SARJETA CONJUGADOS DE CONCRETO, MOLDADA IN LOCO EM TRECHO RETO COM EXTRUSORA, 45 CM BASE (15 CM BASE DA GUIA + 30 CM BASE DA SARJETA) X 22 CM ALTURA. AF_06/2016 | D33: =IF(OFFSET(PO!O$12,ROW(D33)-ROW(D$12),0)=0,"",OFFSET(PO!O$12,ROW(D33)-ROW(D$12),0)) -> M | E33: =IF($A33<>"Serviço",0,ROUND(SUMIF($F$9:$Z$9,"<>",$F33:$Z33),15-13*PO!$X$3)) -> 812 | G33: 78 | H33: 168 | I33: 186 | J33: 192 | K33: 188
A34: =OFFSET(PO!J$12,ROW(A34)-ROW($A$12),0) -> Nível 2 | B34: =IF($A34=0,"",OFFSET(PO!K$12,ROW(B34)-ROW(B$12),0)) -> 1.7. | C34: =IF(OFFSET(PO!N$12,ROW(C34)-ROW(C$12),0)=0,"",OFFSET(PO!N$12,ROW(C34)-ROW(C$12),0)) -> CALÇADAS/REBAIXAMENTOS | D34: =IF(OFFSET(PO!O$12,ROW(D34)-ROW(D$12),0)=0,"",OFFSET(PO!O$12,ROW(D34)-ROW(D$12),0)) ->  | E34: =IF($A34<>"Serviço",0,ROUND(SUMIF($F$9:$Z$9,"<>",$F34:$Z34),15-13*PO!$X$3)) -> 0
A35: =OFFSET(PO!J$12,ROW(A35)-ROW($A$12),0) -> Serviço | B35: =IF($A35=0,"",OFFSET(PO!K$12,ROW(B35)-ROW(B$12),0)) -> 1.7.1. | C35: =IF(OFFSET(PO!N$12,ROW(C35)-ROW(C$12),0)=0,"",OFFSET(PO!N$12,ROW(C35)-ROW(C$12),0)) -> EXECUÇÃO DE PASSEIO (CALÇADA) OU PISO DE CONCRETO COM CONCRETO MOLDADO IN LOCO, USINADO, ACABAMENTO CONVENCIONAL, NÃO ARMADO. AF_07/2016 | D35: =IF(OFFSET(PO!O$12,ROW(D35)-ROW(D$12),0)=0,"",OFFSET(PO!O$12,ROW(D35)-ROW(D$12),0)) -> M3 | E35: =IF($A35<>"Serviço",0,ROUND(SUMIF($F$9:$Z$9,"<>",$F35:$Z35),15-13*PO!$X$3)) -> 63.23 | G35: 5.85 | H35: 12.6 | I35: 16.28 | J35: 14.4 | K35: 14.1
A36: =OFFSET(PO!J$12,ROW(A36)-ROW($A$12),0) -> Serviço | B36: =IF($A36=0,"",OFFSET(PO!K$12,ROW(B36)-ROW(B$12),0)) -> 1.7.2. | C36: =IF(OFFSET(PO!N$12,ROW(C36)-ROW(C$12),0)=0,"",OFFSET(PO!N$12,ROW(C36)-ROW(C$12),0)) -> RAMPA DE CONCRETO - VER DETALHAMENTO NOS PROJETOS | D36: =IF(OFFSET(PO!O$12,ROW(D36)-ROW(D$12),0)=0,"",OFFSET(PO!O$12,ROW(D36)-ROW(D$12),0)) -> UND | E36: =IF($A36<>"Serviço",0,ROUND(SUMIF($F$9:$Z$9,"<>",$F36:$Z36),15-13*PO!$X$3)) -> 10 | G36: 2 | H36: 2 | I36: 2 | J36: 2 | K36: 2
A37: =OFFSET(PO!J$12,ROW(A37)-ROW($A$12),0) -> Nível 2 | B37: =IF($A37=0,"",OFFSET(PO!K$12,ROW(B37)-ROW(B$12),0)) -> 1.8. | C37: =IF(OFFSET(PO!N$12,ROW(C37)-ROW(C$12),0)=0,"",OFFSET(PO!N$12,ROW(C37)-ROW(C$12),0)) -> SINALIZAÇÃO VIÁRIA | D37: =IF(OFFSET(PO!O$12,ROW(D37)-ROW(D$12),0)=0,"",OFFSET(PO!O$12,ROW(D37)-ROW(D$12),0)) ->  | E37: =IF($A37<>"Serviço",0,ROUND(SUMIF($F$9:$Z$9,"<>",$F37:$Z37),15-13*PO!$X$3)) -> 0
A38: =OFFSET(PO!J$12,ROW(A38)-ROW($A$12),0) -> Serviço | B38: =IF($A38=0,"",OFFSET(PO!K$12,ROW(B38)-ROW(B$12),0)) -> 1.8.1. | C38: =IF(OFFSET(PO!N$12,ROW(C38)-ROW(C$12),0)=0,"",OFFSET(PO!N$12,ROW(C38)-ROW(C$12),0)) -> SINALIZACAO HORIZONTAL COM TINTA RETRORREFLETIVA A BASE DE RESINA ACRILICA COM MICROESFERAS DE VIDRO | D38: =IF(OFFSET(PO!O$12,ROW(D38)-ROW(D$12),0)=0,"",OFFSET(PO!O$12,ROW(D38)-ROW(D$12),0)) -> M2 | E38: =IF($A38<>"Serviço",0,ROUND(SUMIF($F$9:$Z$9,"<>",$F38:$Z38),15-13*PO!$X$3)) -> 108.88 | G38: 21.2 | H38: 22.68 | I38: 22.68 | J38: 22.68 | K38: 19.64
A39: =OFFSET(PO!J$12,ROW(A39)-ROW($A$12),0) -> Serviço | B39: =IF($A39=0,"",OFFSET(PO!K$12,ROW(B39)-ROW(B$12),0)) -> 1.8.2. | C39: =IF(OFFSET(PO!N$12,ROW(C39)-ROW(C$12),0)=0,"",OFFSET(PO!N$12,ROW(C39)-ROW(C$12),0)) -> PLACA DE SINALIZAÇÃO VIÁRIA OCTOGONAL L=25CM, COM SUPORTE DE AÇO GALVANIZADO (D=50MM E H= 3 METROS), INCLUSIVE BASE DE CONCRETO NÃO ESTRUTURAL - PARADA OBRIGATÓRIA | D39: =IF(OFFSET(PO!O$12,ROW(D39)-ROW(D$12),0)=0,"",OFFSET(PO!O$12,ROW(D39)-ROW(D$12),0)) -> UND | E39: =IF($A39<>"Serviço",0,ROUND(SUMIF($F$9:$Z$9,"<>",$F39:$Z39),15-13*PO!$X$3)) -> 10 | G39: 2 | H39: 2 | I39: 2 | J39: 2 | K39: 2
A40: =OFFSET(PO!J$12,ROW(A40)-ROW($A$12),0) -> Serviço | B40: =IF($A40=0,"",OFFSET(PO!K$12,ROW(B40)-ROW(B$12),0)) -> 1.8.3. | C40: =IF(OFFSET(PO!N$12,ROW(C40)-ROW(C$12),0)=0,"",OFFSET(PO!N$12,ROW(C40)-ROW(C$12),0)) -> PLACA ESMALTADA PARA IDENTIFICAÇÃO NR DE RUA, DIMENSÕES 45X25CM | D40: =IF(OFFSET(PO!O$12,ROW(D40)-ROW(D$12),0)=0,"",OFFSET(PO!O$12,ROW(D40)-ROW(D$12),0)) -> UN | E40: =IF($A40<>"Serviço",0,ROUND(SUMIF($F$9:$Z$9,"<>",$F40:$Z40),15-13*PO!$X$3)) -> 5 | G40: 1 | H40: 1 | I40: 1 | J40: 1 | K40: 1
B43: =PO!$K$52 -> Veríssimo/MG
B44: Local
B46: =PO!$K$55 -> 2020-05-29
B47: Data

Sheet CFF
O1: CFF - | P1: CRONOGRAMA FÍSICO-FINANCEIRO
P2: =CHOOSE(1+LOG(1+2*(TipoOrçamento="BASE")+4*(TipoOrçamento="LICITADO")+8*(TipoOrçamento="REPROGRAMADOAC")+16*(TipoOrçamento="REPROGRAMADONPL"),2),"nada","Cronograma Base para Licitação","Cronograma Licitado","Cronograma Licitado Reprogramado","Cronograma Base para Licitação - Reprogramado") -> Cronograma Base para Licitação
A8: Nível Máx Crono | L8: =IF(MAX($A$14:$A$46)<>MAX(PO!$V$12:$V$41),"ERRO: CRONOGRAMA DESATUALIZADO",IF(OR(COUNTIF($O$16:$X$16,">1")>0,OFFSET($X$17,0,-1)<>$N$14),"ERRO: CRONOGRAMA NÃO FECHA EM 100%","")) ->  | N8: =IF(TipoOrçamento="REPROGRAMADOAC","Qtde de Medições realizadas","") -> 
A9: 2 | N9: 1 | O9: =IF(AND(TipoOrçamento="REPROGRAMADOAC",$N$9>0),$N$9-1,0) -> 0 | P9: =OFFSET(P9,0,-1)+1 -> 1 | Q9: 2 | R9: 3 | S9: 4 | T9: 5 | U9: 6 | V9: 7 | W9: 8 | AC9: =OFFSET(AC9,0,-1)+1 -> 1
A10: Lista Crono | B10: Último Nível | C10: Nível | D10: Altura | E10: N1 | F10: N2 | G10: N3 | H10: N4 | I10: Czero | J10: Cnível | K10: VTOTAL SOMA | L10: Item | M10: Descrição das Metas / Macrosserviços | N10: Valores Totais (R$) | O10: =IF(TipoOrçamento="REPROGRAMADOAC","Reinício de Obra","Início de Obra")&CHAR(10)&TEXT(DADOS!A48,"dd/mm/aa") -> Início de Obra 01/08/20 | P10: =IF(AND(TipoOrçamento="REPROGRAMADOAC",$N$9>0,N10="Valores Totais (R$)"),"Parcela "&$N$9&" Executado","Parcela "&P$9&CHAR(10)&TEXT(DATE(YEAR(DADOS!$A$48),MONTH(DADOS!$A$48)+P$9-IF(AND(TipoOrçamento="REPROGRAMADOAC",$N$9>0),$N$9,0),1),"mmm/aa")) -> Parcela 1 set/20 | Q10: =IF(AND(TipoOrçamento="REPROGRAMADOAC",$N$9>0,O10="Valores Totais (R$)"),"Parcela "&$N$9&" Executado","Parcela "&Q$9&CHAR(10)&TEXT(DATE(YEAR(DADOS!$A$48),MONTH(DADOS!$A$48)+Q$9-IF(AND(TipoOrçamento="REPROGRAMADOAC",$N$9>0),$N$9,0),1),"mmm/aa")) -> Parcela 2 out/20 | R10: =IF(AND(TipoOrçamento="REPROGRAMADOAC",$N$9>0,P10="Valores Totais (R$)"),"Parcela "&$N$9&" Executado","Parcela "&R$9&CHAR(10)&TEXT(DATE(YEAR(DADOS!$A$48),MONTH(DADOS!$A$48)+R$9-IF(AND(TipoOrçamento="REPROGRAMADOAC",$N$9>0),$N$9,0),1),"mmm/aa")) -> Parcela 3 nov/20 | S10: =IF(AND(TipoOrçamento="REPROGRAMADOAC",$N$9>0,Q10="Valores Totais (R$)"),"Parcela "&$N$9&" Executado","Parcela "&S$9&CHAR(10)&TEXT(DATE(YEAR(DADOS!$A$48),MONTH(DADOS!$A$48)+S$9-IF(AND(TipoOrçamento="REPROGRAMADOAC",$N$9>0),$N$9,0),1),"mmm/aa")) -> Parcela 4 dez/20 | T10: =IF(AND(TipoOrçamento="REPROGRAMADOAC",$N$9>0,R10="Valores Totais (R$)"),"Parcela "&$N$9&" Executado","Parcela "&T$9&CHAR(10)&TEXT(DATE(YEAR(DADOS!$A$48),MONTH(DADOS!$A$48)+T$9-IF(AND(TipoOrçamento="REPROGRAMADOAC",$N$9>0),$N$9,0),1),"mmm/aa")) -> Parcela 5 jan/21 | U10: =IF(AND(TipoOrçamento="REPROGRAMADOAC",$N$9>0,S10="Valores Totais (R$)"),"Parcela "&$N$9&" Executado","Parcela "&U$9&CHAR(10)&TEXT(DATE(YEAR(DADOS!$A$48),MONTH(DADOS!$A$48)+U$9-IF(AND(TipoOrçamento="REPROGRAMADOAC",$N$9>0),$N$9,0),1),"mmm/aa")) -> Parcela 6 fev/21 | V10: =IF(AND(TipoOrçamento="REPROGRAMADOAC",$N$9>0,T10="Valores Totais (R$)"),"Parcela "&$N$9&" Executado","Parcela "&V$9&CHAR(10)&TEXT(DATE(YEAR(DADOS!$A$48),MONTH(DADOS!$A$48)+V$9-IF(AND(TipoOrçamento="REPROGRAMADOAC",$N$9>0),$N$9,0),1),"mmm/aa")) -> Parcela 7 mar/21 | W10: =IF(AND(TipoOrçamento="REPROGRAMADOAC",$N$9>0,U10="Valores Totais (R$)"),"Parcela "&$N$9&" Executado","Parcela "&W$9&CHAR(10)&TEXT(DATE(YEAR(DADOS!$A$48),MONTH(DADOS!$A$48)+W$9-IF(AND(TipoOrçamento="REPROGRAMADOAC",$N$9>0),$N$9,0),1),"mmm/aa")) -> Parcela 8 abr/21 | AC10: =IF(AND(TipoOrçamento="REPROGRAMADOAC",$N$9>0,AA10="Valores Totais (R$)"),"Parcela "&$N$9&" Executado","Parcela "&AC$9&CHAR(10)&TEXT(DATE(YEAR(DADOS!$A$48),MONTH(DADOS!$A$48)+AC$9-IF(AND(TipoOrçamento="REPROGRAMADOAC",$N$9>0),$N$9,0),1),"mmm/aa")) -> Parcela 1 set/20
L11: =INDEX(PO!K$12:K$41,MATCH($A13,PO!$V$12:$V$41,0)) ->  | M11: =INDEX(PO!N$12:N$41,MATCH($A13,PO!$V$12:$V$41,0)) ->  | N11: =IF(ROUND(K13,2)=0,K13,ROUND(K13,2)) ->  | O11: Parcela (%) | P11: =IF($B13,0,P12-IF(ISNUMBER(O12),O12,0)) ->  | Q11: =IF($B13,0,Q12-IF(ISNUMBER(P12),P12,0)) ->  | AC11: =IF($B13,0,AC12-IF(ISNUMBER(AB12),AB12,0)) -> 
O12: Acumulado (%) | P12: =MIN(IF($B13,P11+IF(ISNUMBER(O12),O12,0),P13/$N11),1) ->  | Q12: =MIN(IF($B13,Q11+IF(ISNUMBER(P12),P12,0),Q13/$N11),1) ->  | AC12: =MIN(IF($B13,AC11+IF(ISNUMBER(AB12),AB12,0),AC13/$N11),1) -> 
A13: =OFFSET(A13,-CFF.NumLinha,0)+1 ->  | B13: =$C13>=OFFSET($C13,CFF.NumLinha,0) ->  | C13: =INDEX(PO!A$12:A$41,MATCH($A13,PO!$V$12:$V$41,0)) ->  | D13: =IF(ISERROR(J13),I13,SMALL(I13:J13,1))-1 ->  | E13: =IF($C13=1,OFFSET(E13,-CFF.NumLinha,0)+1,OFFSET(E13,-CFF.NumLinha,0)) ->  | F13: =IF($C13=1,0,IF($C13=2,OFFSET(F13,-CFF.NumLinha,0)+1,OFFSET(F13,-CFF.NumLinha,0))) ->  | G13: =IF(AND($C13<=2,$C13<>0),0,IF($C13=3,OFFSET(G13,-CFF.NumLinha,0)+1,OFFSET(G13,-CFF.NumLinha,0))) ->  | H13: =IF(AND($C13<=3,$C13<>0),0,IF($C13=4,OFFSET(H13,-CFF.NumLinha,0)+1,OFFSET(H13,-CFF.NumLinha,0))) ->  | I13: =MATCH(0,OFFSET($D13,1,$C13,ROW($A$45)-ROW($A13)),0) ->  | J13: =MATCH(OFFSET($D13,0,$C13)+1,OFFSET($D13,1,$C13,ROW($A$45)-ROW($A13)),0) ->  | K13: =ROUND(INDEX(PO!T$12:T$41,MATCH($A13,PO!$V$12:$V$41,0)),2)+10^-12 ->  | O13: Acumulado (R$) | P13: =IF($B13,ROUND(P12*$N11,2),ROUND(SUMIF(OFFSET($B13,1,0,$D13),TRUE,OFFSET(P13,1,0,$D13))/SUMIF(OFFSET($B13,1,0,$D13),TRUE,OFFSET($K13,1,0,$D13))*$N11,2)) ->  | Q13: =IF($B13,ROUND(Q12*$N11,2),ROUND(SUMIF(OFFSET($B13,1,0,$D13),TRUE,OFFSET(Q13,1,0,$D13))/SUMIF(OFFSET($B13,1,0,$D13),TRUE,OFFSET($K13,1,0,$D13))*$N11,2)) ->  | AC13: =IF($B13,ROUND(AC12*$N11,2),ROUND(SUMIF(OFFSET($B13,1,0,$D13),TRUE,OFFSET(AC13,1,0,$D13))/SUMIF(OFFSET($B13,1,0,$D13),TRUE,OFFSET($K13,1,0,$D13))*$N11,2)) -> 
L14: CRONOGRAMA GLOBAL DO LOTE | N14: =IF(PO!$T$12=0,10^-12,PO!$T$12) -> 263000 | O14: Parcela (%) | P14: =ROUND(P15/$N14,4) -> 0.239 | Q14: =ROUND(Q15/$N14,4) -> 0.6055 | R14: 0.1555 | S14: 0 | T14: 0 | U14: 0 | V14: 0 | W14: 0 | AC14: =ROUND(AC15/$N14,4) -> 0
O15: Parcela (R$) | P15: =P17-IF(ISNUMBER(O17),O17,0) -> 62865.54 | Q15: =Q17-IF(ISNUMBER(P17),P17,0) -> 159234.21 | R15: 40900.25 | S15: 0 | T15: 0 | U15: 0 | V15: 0 | W15: 0 | AC15: =AC17-IF(ISNUMBER(AB17),AB17,0) -> 0
O16: Acumulado (%) | P16: =ROUND(P17/$N14,4) -> 0.239 | Q16: =ROUND(Q17/$N14,4) -> 0.8445 | R16: 1 | S16: 1 | T16: 1 | U16: 1 | V16: 1 | W16: 1 | AC16: =ROUND(AC17/$N14,4) -> 0
A17: 0 | D17: =ROW(D$45)-ROW(D18) -> 27 | O17: Acumulado (R$) | P17: =SUMIF(OFFSET($C17,1,0):$C$45,1,OFFSET(P17,1,0):P$45) -> 62865.54 | Q17: =SUMIF(OFFSET($C17,1,0):$C$45,1,OFFSET(Q17,1,0):Q$45) -> 222099.75 | R17: =SUMIF(OFFSET($C17,1,0):$C$45,1,OFFSET(R17,1,0):R$45) -> 263000 | S17: =SUMIF(OFFSET($C17,1,0):$C$45,1,OFFSET(S17,1,0):S$45) -> 263000 | T17: =SUMIF(OFFSET($C17,1,0):$C$45,1,OFFSET(T17,1,0):T$45) -> 263000 | U17: =SUMIF(OFFSET($C17,1,0):$C$45,1,OFFSET(U17,1,0):U$45) -> 263000 | V17: =SUMIF(OFFSET($C17,1,0):$C$45,1,OFFSET(V17,1,0):V$45) -> 263000 | W17: =SUMIF(OFFSET($C17,1,0):$C$45,1,OFFSET(W17,1,0):W$45) -> 263000 | AC17: =SUMIF(OFFSET($C17,1,0):$C$45,1,OFFSET(AC17,1,0):AC$45) -> 0
L18: =INDEX(PO!K$12:K$41,MATCH($A20,PO!$V$12:$V$41,0)) -> 1. | M18: =INDEX(PO!N$12:N$41,MATCH($A20,PO!$V$12:$V$41,0)) -> Pavimentação de Vias Públicas | N18: =IF(ROUND(K20,2)=0,K20,ROUND(K20,2)) -> 263000 | O18: Parcela (%) | P18: =IF($B20,0,P19-IF(ISNUMBER(O19),O19,0)) -> 0.2390324715 | Q18: 0.60545327 | R18: 0.1555142586 | S18: 0 | T18: 0 | U18: 0 | V18: 0 | W18: 0 | AC18: =IF($B20,0,AC19-IF(ISNUMBER(AB19),AB19,0)) -> 0
O19: Acumulado (%) | P19: =MIN(IF($B20,P18+IF(ISNUMBER(O19),O19,0),P20/$N18),1) -> 0.2390324715 | Q19: 0.8444857414 | R19: 1 | S19: 1 | T19: 1 | U19: 1 | V19: 1 | W19: 1 | AC19: =MIN(IF($B20,AC18+IF(ISNUMBER(AB19),AB19,0),AC20/$N18),1) -> 0
A20: =OFFSET(A20,-CFF.NumLinha,0)+1 -> 1 | B20: =$C20>=OFFSET($C20,CFF.NumLinha,0) -> FALSE | C20: =INDEX(PO!A$12:A$41,MATCH($A20,PO!$V$12:$V$41,0)) -> 1 | D20: =IF(ISERROR(J20),I20,SMALL(I20:J20,1))-1 -> 24 | E20: =IF($C20=1,OFFSET(E20,-CFF.NumLinha,0)+1,OFFSET(E20,-CFF.NumLinha,0)) -> 1 | F20: =IF($C20=1,0,IF($C20=2,OFFSET(F20,-CFF.NumLinha,0)+1,OFFSET(F20,-CFF.NumLinha,0))) -> 0 | G20: =IF(AND($C20<=2,$C20<>0),0,IF($C20=3,OFFSET(G20,-CFF.NumLinha,0)+1,OFFSET(G20,-CFF.NumLinha,0))) -> 0 | H20: =IF(AND($C20<=3,$C20<>0),0,IF($C20=4,OFFSET(H20,-CFF.NumLinha,0)+1,OFFSET(H20,-CFF.NumLinha,0))) -> 0 | I20: =MATCH(0,OFFSET($D20,1,$C20,ROW($A$45)-ROW($A20)),0) -> 25 | J20: =MATCH(OFFSET($D20,0,$C20)+1,OFFSET($D20,1,$C20,ROW($A$45)-ROW($A20)),0) ->  | K20: =ROUND(INDEX(PO!T$12:T$41,MATCH($A20,PO!$V$12:$V$41,0)),2)+10^-12 -> 263000 | O20: Acumulado (R$) | P20: =IF($B20,ROUND(P19*$N18,2),ROUND(SUMIF(OFFSET($B20,1,0,$D20),TRUE,OFFSET(P20,1,0,$D20))/SUMIF(OFFSET($B20,1,0,$D20),TRUE,OFFSET($K20,1,0,$D20))*$N18,2)) -> 62865.54 | Q20: 222099.75 | R20: 263000 | S20: 263000 | T20: 263000 | U20: 263000 | V20: 263000 | W20: 263000 | AC20: =IF($B20,ROUND(AC19*$N18,2),ROUND(SUMIF(OFFSET($B20,1,0,$D20),TRUE,OFFSET(AC20,1,0,$D20))/SUMIF(OFFSET($B20,1,0,$D20),TRUE,OFFSET($K20,1,0,$D20))*$N18,2)) -> 0
L21: =INDEX(PO!K$12:K$41,MATCH($A23,PO!$V$12:$V$41,0)) -> 1.1. | M21: =INDEX(PO!N$12:N$41,MATCH($A23,PO!$V$12:$V$41,0)) -> SERVIÇOS PRELIMINARES | N21: =IF(ROUND(K23,2)=0,K23,ROUND(K23,2)) -> 1629.18 | O21: Parcela (%) | P21: 1 | Q21: =IF($B23,0,Q22-IF(ISNUMBER(P22),P22,0)) -> 0 | R21: =IF($B23,0,R22-IF(ISNUMBER(Q22),Q22,0)) -> 0 | S21: =IF($B23,0,S22-IF(ISNUMBER(R22),R22,0)) -> 0 | T21: =IF($B23,0,T22-IF(ISNUMBER(S22),S22,0)) -> 0 | U21: =IF($B23,0,U22-IF(ISNUMBER(T22),T22,0)) -> 0 | V21: =IF($B23,0,V22-IF(ISNUMBER(U22),U22,0)) -> 0 | W21: =IF($B23,0,W22-IF(ISNUMBER(V22),V22,0)) -> 0 | AC21: =IF($B23,0,AC22-IF(ISNUMBER(AB22),AB22,0)) -> 0
O22: Acumulado (%) | P22: =MIN(IF($B23,P21+IF(ISNUMBER(O22),O22,0),P23/$N21),1) -> 1 | Q22: =MIN(IF($B23,Q21+IF(ISNUMBER(P22),P22,0),Q23/$N21),1) -> 1 | R22: =MIN(IF($B23,R21+IF(ISNUMBER(Q22),Q22,0),R23/$N21),1) -> 1 | S22: =MIN(IF($B23,S21+IF(ISNUMBER(R22),R22,0),S23/$N21),1) -> 1 | T22: =MIN(IF($B23,T21+IF(ISNUMBER(S22),S22,0),T23/$N21),1) -> 1 | U22: =MIN(IF($B23,U21+IF(ISNUMBER(T22),T22,0),U23/$N21),1) -> 1 | V22: =MIN(IF($B23,V21+IF(ISNUMBER(U22),U22,0),V23/$N21),1) -> 1 | W22: =MIN(IF($B23,W21+IF(ISNUMBER(V22),V22,0),W23/$N21),1) -> 1 | AC22: =MIN(IF($B23,AC21+IF(ISNUMBER(AB22),AB22,0),AC23/$N21),1) -> 0
A23: =OFFSET(A23,-CFF.NumLinha,0)+1 -> 2 | B23: =$C23>=OFFSET($C23,CFF.NumLinha,0) -> TRUE | C23: =INDEX(PO!A$12:A$41,MATCH($A23,PO!$V$12:$V$41,0)) -> 2 | D23: =IF(ISERROR(J23),I23,SMALL(I23:J23,1))-1 -> 2 | E23: =IF($C23=1,OFFSET(E23,-CFF.NumLinha,0)+1,OFFSET(E23,-CFF.NumLinha,0)) -> 1 | F23: =IF($C23=1,0,IF($C23=2,OFFSET(F23,-CFF.NumLinha,0)+1,OFFSET(F23,-CFF.NumLinha,0))) -> 1 | G23: =IF(AND($C23<=2,$C23<>0),0,IF($C23=3,OFFSET(G23,-CFF.NumLinha,0)+1,OFFSET(G23,-CFF.NumLinha,0))) -> 0 | H23: =IF(AND($C23<=3,$C23<>0),0,IF($C23=4,OFFSET(H23,-CFF.NumLinha,0)+1,OFFSET(H23,-CFF.NumLinha,0))) -> 0 | I23: =MATCH(0,OFFSET($D23,1,$C23,ROW($A$45)-ROW($A23)),0) -> 22 | J23: =MATCH(OFFSET($D23,0,$C23)+1,OFFSET($D23,1,$C23,ROW($A$45)-ROW($A23)),0) -> 3 | K23: =ROUND(INDEX(PO!T$12:T$41,MATCH($A23,PO!$V$12:$V$41,0)),2)+10^-12 -> 1629.18 | O23: Acumulado (R$) | P23: =IF($B23,ROUND(P22*$N21,2),ROUND(SUMIF(OFFSET($B23,1,0,$D23),TRUE,OFFSET(P23,1,0,$D23))/SUMIF(OFFSET($B23,1,0,$D23),TRUE,OFFSET($K23,1,0,$D23))*$N21,2)) -> 1629.18 | Q23: 1629.18 | R23: 1629.18 | S23: 1629.18 | T23: 1629.18 | U23: 1629.18 | V23: 1629.18 | W23: 1629.18 | AC23: =IF($B23,ROUND(AC22*$N21,2),ROUND(SUMIF(OFFSET($B23,1,0,$D23),TRUE,OFFSET(AC23,1,0,$D23))/SUMIF(OFFSET($B23,1,0,$D23),TRUE,OFFSET($K23,1,0,$D23))*$N21,2)) -> 0
L24: =INDEX(PO!K$12:K$41,MATCH($A26,PO!$V$12:$V$41,0)) -> 1.2. | M24: =INDEX(PO!N$12:N$41,MATCH($A26,PO!$V$12:$V$41,0)) -> ADMINISTRAÇÃO LOCAL DA OBRA | N24: =IF(ROUND(K26,2)=0,K26,ROUND(K26,2)) -> 5713.18 | O24: Parcela (%) | P24: 0.239034 | Q24: 0.605452 | R24: 0.155514 | S24: =IF($B26,0,S25-IF(ISNUMBER(R25),R25,0)) -> 0 | T24: =IF($B26,0,T25-IF(ISNUMBER(S25),S25,0)) -> 0 | U24: =IF($B26,0,U25-IF(ISNUMBER(T25),T25,0)) -> 0 | V24: =IF($B26,0,V25-IF(ISNUMBER(U25),U25,0)) -> 0 | W24: =IF($B26,0,W25-IF(ISNUMBER(V25),V25,0)) -> 0 | AC24: =IF($B26,0,AC25-IF(ISNUMBER(AB25),AB25,0)) -> 0
O25: Acumulado (%) | P25: =MIN(IF($B26,P24+IF(ISNUMBER(O25),O25,0),P26/$N24),1) -> 0.239034 | Q25: =MIN(IF($B26,Q24+IF(ISNUMBER(P25),P25,0),Q26/$N24),1) -> 0.844486 | R25: =MIN(IF($B26,R24+IF(ISNUMBER(Q25),Q25,0),R26/$N24),1) -> 1 | S25: =MIN(IF($B26,S24+IF(ISNUMBER(R25),R25,0),S26/$N24),1) -> 1 | T25: =MIN(IF($B26,T24+IF(ISNUMBER(S25),S25,0),T26/$N24),1) -> 1 | U25: =MIN(IF($B26,U24+IF(ISNUMBER(T25),T25,0),U26/$N24),1) -> 1 | V25: =MIN(IF($B26,V24+IF(ISNUMBER(U25),U25,0),V26/$N24),1) -> 1 | W25: =MIN(IF($B26,W24+IF(ISNUMBER(V25),V25,0),W26/$N24),1) -> 1 | AC25: =MIN(IF($B26,AC24+IF(ISNUMBER(AB25),AB25,0),AC26/$N24),1) -> 0
A26: =OFFSET(A26,-CFF.NumLinha,0)+1 -> 3 | B26: =$C26>=OFFSET($C26,CFF.NumLinha,0) -> TRUE | C26: =INDEX(PO!A$12:A$41,MATCH($A26,PO!$V$12:$V$41,0)) -> 2 | D26: =IF(ISERROR(J26),I26,SMALL(I26:J26,1))-1 -> 2 | E26: =IF($C26=1,OFFSET(E26,-CFF.NumLinha,0)+1,OFFSET(E26,-CFF.NumLinha,0)) -> 1 | F26: =IF($C26=1,0,IF($C26=2,OFFSET(F26,-CFF.NumLinha,0)+1,OFFSET(F26,-CFF.NumLinha,0))) -> 2 | G26: =IF(AND($C26<=2,$C26<>0),0,IF($C26=3,OFFSET(G26,-CFF.NumLinha,0)+1,OFFSET(G26,-CFF.NumLinha,0))) -> 0 | H26: =IF(AND($C26<=3,$C26<>0),0,IF($C26=4,OFFSET(H26,-CFF.NumLinha,0)+1,OFFSET(H26,-CFF.NumLinha,0))) -> 0 | I26: =MATCH(0,OFFSET($D26,1,$C26,ROW($A$45)-ROW($A26)),0) -> 19 | J26: =MATCH(OFFSET($D26,0,$C26)+1,OFFSET($D26,1,$C26,ROW($A$45)-ROW($A26)),0) -> 3 | K26: =ROUND(INDEX(PO!T$12:T$41,MATCH($A26,PO!$V$12:$V$41,0)),2)+10^-12 -> 5713.18 | O26: Acumulado (R$) | P26: =IF($B26,ROUND(P25*$N24,2),ROUND(SUMIF(OFFSET($B26,1,0,$D26),TRUE,OFFSET(P26,1,0,$D26))/SUMIF(OFFSET($B26,1,0,$D26),TRUE,OFFSET($K26,1,0,$D26))*$N24,2)) -> 1365.64 | Q26: 4824.7 | R26: 5713.18 | S26: 5713.18 | T26: 5713.18 | U26: 5713.18 | V26: 5713.18 | W26: 5713.18 | AC26: =IF($B26,ROUND(AC25*$N24,2),ROUND(SUMIF(OFFSET($B26,1,0,$D26),TRUE,OFFSET(AC26,1,0,$D26))/SUMIF(OFFSET($B26,1,0,$D26),TRUE,OFFSET($K26,1,0,$D26))*$N24,2)) -> 0
L27: =INDEX(PO!K$12:K$41,MATCH($A29,PO!$V$12:$V$41,0)) -> 1.3. | M27: =INDEX(PO!N$12:N$41,MATCH($A29,PO!$V$12:$V$41,0)) -> TRANSPORTE DE MÁQUINAS E EQUIPAMENTOS | N27: =IF(ROUND(K29,2)=0,K29,ROUND(K29,2)) -> 3119.24 | O27: Parcela (%) | P27: 0.5 | Q27: 0.5 | R27: =IF($B29,0,R28-IF(ISNUMBER(Q28),Q28,0)) -> 0 | S27: =IF($B29,0,S28-IF(ISNUMBER(R28),R28,0)) -> 0 | T27: =IF($B29,0,T28-IF(ISNUMBER(S28),S28,0)) -> 0 | U27: =IF($B29,0,U28-IF(ISNUMBER(T28),T28,0)) -> 0 | V27: =IF($B29,0,V28-IF(ISNUMBER(U28),U28,0)) -> 0 | W27: =IF($B29,0,W28-IF(ISNUMBER(V28),V28,0)) -> 0 | AC27: =IF($B29,0,AC28-IF(ISNUMBER(AB28),AB28,0)) -> 0
O28: Acumulado (%) | P28: =MIN(IF($B29,P27+IF(ISNUMBER(O28),O28,0),P29/$N27),1) -> 0.5 | Q28: =MIN(IF($B29,Q27+IF(ISNUMBER(P28),P28,0),Q29/$N27),1) -> 1 | R28: =MIN(IF($B29,R27+IF(ISNUMBER(Q28),Q28,0),R29/$N27),1) -> 1 | S28: =MIN(IF($B29,S27+IF(ISNUMBER(R28),R28,0),S29/$N27),1) -> 1 | T28: =MIN(IF($B29,T27+IF(ISNUMBER(S28),S28,0),T29/$N27),1) -> 1 | U28: =MIN(IF($B29,U27+IF(ISNUMBER(T28),T28,0),U29/$N27),1) -> 1 | V28: =MIN(IF($B29,V27+IF(ISNUMBER(U28),U28,0),V29/$N27),1) -> 1 | W28: =MIN(IF($B29,W27+IF(ISNUMBER(V28),V28,0),W29/$N27),1) -> 1 | AC28: =MIN(IF($B29,AC27+IF(ISNUMBER(AB28),AB28,0),AC29/$N27),1) -> 0
A29: =OFFSET(A29,-CFF.NumLinha,0)+1 -> 4 | B29: =$C29>=OFFSET($C29,CFF.NumLinha,0) -> TRUE | C29: =INDEX(PO!A$12:A$41,MATCH($A29,PO!$V$12:$V$41,0)) -> 2 | D29: =IF(ISERROR(J29),I29,SMALL(I29:J29,1))-1 -> 2 | E29: =IF($C29=1,OFFSET(E29,-CFF.NumLinha,0)+1,OFFSET(E29,-CFF.NumLinha,0)) -> 1 | F29: =IF($C29=1,0,IF($C29=2,OFFSET(F29,-CFF.NumLinha,0)+1,OFFSET(F29,-CFF.NumLinha,0))) -> 3 | G29: =IF(AND($C29<=2,$C29<>0),0,IF($C29=3,OFFSET(G29,-CFF.NumLinha,0)+1,OFFSET(G29,-CFF.NumLinha,0))) -> 0 | H29: =IF(AND($C29<=3,$C29<>0),0,IF($C29=4,OFFSET(H29,-CFF.NumLinha,0)+1,OFFSET(H29,-CFF.NumLinha,0))) -> 0 | I29: =MATCH(0,OFFSET($D29,1,$C29,ROW($A$45)-ROW($A29)),0) -> 16 | J29: =MATCH(OFFSET($D29,0,$C29)+1,OFFSET($D29,1,$C29,ROW($A$45)-ROW($A29)),0) -> 3 | K29: =ROUND(INDEX(PO!T$12:T$41,MATCH($A29,PO!$V$12:$V$41,0)),2)+10^-12 -> 3119.24 | O29: Acumulado (R$) | P29: =IF($B29,ROUND(P28*$N27,2),ROUND(SUMIF(OFFSET($B29,1,0,$D29),TRUE,OFFSET(P29,1,0,$D29))/SUMIF(OFFSET($B29,1,0,$D29),TRUE,OFFSET($K29,1,0,$D29))*$N27,2)) -> 1559.62 | Q29: 3119.24 | R29: 3119.24 | S29: 3119.24 | T29: 3119.24 | U29: 3119.24 | V29: 3119.24 | W29: 3119.24 | AC29: =IF($B29,ROUND(AC28*$N27,2),ROUND(SUMIF(OFFSET($B29,1,0,$D29),TRUE,OFFSET(AC29,1,0,$D29))/SUMIF(OFFSET($B29,1,0,$D29),TRUE,OFFSET($K29,1,0,$D29))*$N27,2)) -> 0
L30: =INDEX(PO!K$12:K$41,MATCH($A32,PO!$V$12:$V$41,0)) -> 1.4. | M30: =INDEX(PO!N$12:N$41,MATCH($A32,PO!$V$12:$V$41,0)) -> SUBLEITO E BASE | N30: =IF(ROUND(K32,2)=0,K32,ROUND(K32,2)) -> 27418.54 | O30: Parcela (%) | P30: 1 | Q30: =IF($B32,0,Q31-IF(ISNUMBER(P31),P31,0)) -> 0 | R30: =IF($B32,0,R31-IF(ISNUMBER(Q31),Q31,0)) -> 0 | S30: =IF($B32,0,S31-IF(ISNUMBER(R31),R31,0)) -> 0 | T30: =IF($B32,0,T31-IF(ISNUMBER(S31),S31,0)) -> 0 | U30: =IF($B32,0,U31-IF(ISNUMBER(T31),T31,0)) -> 0 | V30: =IF($B32,0,V31-IF(ISNUMBER(U31),U31,0)) -> 0 | W30: =IF($B32,0,W31-IF(ISNUMBER(V31),V31,0)) -> 0 | AC30: =IF($B32,0,AC31-IF(ISNUMBER(AB31),AB31,0)) -> 0
O31: Acumulado (%) | P31: =MIN(IF($B32,P30+IF(ISNUMBER(O31),O31,0),P32/$N30),1) -> 1 | Q31: =MIN(IF($B32,Q30+IF(ISNUMBER(P31),P31,0),Q32/$N30),1) -> 1 | R31: =MIN(IF($B32,R30+IF(ISNUMBER(Q31),Q31,0),R32/$N30),1) -> 1 | S31: =MIN(IF($B32,S30+IF(ISNUMBER(R31),R31,0),S32/$N30),1) -> 1 | T31: =MIN(IF($B32,T30+IF(ISNUMBER(S31),S31,0),T32/$N30),1) -> 1 | U31: =MIN(IF($B32,U30+IF(ISNUMBER(T31),T31,0),U32/$N30),1) -> 1 | V31: =MIN(IF($B32,V30+IF(ISNUMBER(U31),U31,0),V32/$N30),1) -> 1 | W31: =MIN(IF($B32,W30+IF(ISNUMBER(V31),V31,0),W32/$N30),1) -> 1 | AC31: =MIN(IF($B32,AC30+IF(ISNUMBER(AB31),AB31,0),AC32/$N30),1) -> 0
A32: =OFFSET(A32,-CFF.NumLinha,0)+1 -> 5 | B32: =$C32>=OFFSET($C32,CFF.NumLinha,0) -> TRUE | C32: =INDEX(PO!A$12:A$41,MATCH($A32,PO!$V$12:$V$41,0)) -> 2 | D32: =IF(ISERROR(J32),I32,SMALL(I32:J32,1))-1 -> 2 | E32: =IF($C32=1,OFFSET(E32,-CFF.NumLinha,0)+1,OFFSET(E32,-CFF.NumLinha,0)) -> 1 | F32: =IF($C32=1,0,IF($C32=2,OFFSET(F32,-CFF.NumLinha,0)+1,OFFSET(F32,-CFF.NumLinha,0))) -> 4 | G32: =IF(AND($C32<=2,$C32<>0),0,IF($C32=3,OFFSET(G32,-CFF.NumLinha,0)+1,OFFSET(G32,-CFF.NumLinha,0))) -> 0 | H32: =IF(AND($C32<=3,$C32<>0),0,IF($C32=4,OFFSET(H32,-CFF.NumLinha,0)+1,OFFSET(H32,-CFF.NumLinha,0))) -> 0 | I32: =MATCH(0,OFFSET($D32,1,$C32,ROW($A$45)-ROW($A32)),0) -> 13 | J32: =MATCH(OFFSET($D32,0,$C32)+1,OFFSET($D32,1,$C32,ROW($A$45)-ROW($A32)),0) -> 3 | K32: =ROUND(INDEX(PO!T$12:T$41,MATCH($A32,PO!$V$12:$V$41,0)),2)+10^-12 -> 27418.54 | O32: Acumulado (R$) | P32: =IF($B32,ROUND(P31*$N30,2),ROUND(SUMIF(OFFSET($B32,1,0,$D32),TRUE,OFFSET(P32,1,0,$D32))/SUMIF(OFFSET($B32,1,0,$D32),TRUE,OFFSET($K32,1,0,$D32))*$N30,2)) -> 27418.54 | Q32: 27418.54 | R32: 27418.54 | S32: 27418.54 | T32: 27418.54 | U32: 27418.54 | V32: 27418.54 | W32: 27418.54 | AC32: =IF($B32,ROUND(AC31*$N30,2),ROUND(SUMIF(OFFSET($B32,1,0,$D32),TRUE,OFFSET(AC32,1,0,$D32))/SUMIF(OFFSET($B32,1,0,$D32),TRUE,OFFSET($K32,1,0,$D32))*$N30,2)) -> 0
L33: =INDEX(PO!K$12:K$41,MATCH($A35,PO!$V$12:$V$41,0)) -> 1.5. | M33: =INDEX(PO!N$12:N$41,MATCH($A35,PO!$V$12:$V$41,0)) -> REVESTIMENTO ASFÁLTICO | N33: =IF(ROUND(K35,2)=0,K35,ROUND(K35,2)) -> 157215.89 | O33: Parcela (%) | P33: 0.196497695 | Q33: 0.803502305 | S33: =IF($B35,0,S34-IF(ISNUMBER(R34),R34,0)) -> 0 | T33: =IF($B35,0,T34-IF(ISNUMBER(S34),S34,0)) -> 0 | U33: =IF($B35,0,U34-IF(ISNUMBER(T34),T34,0)) -> 0 | V33: =IF($B35,0,V34-IF(ISNUMBER(U34),U34,0)) -> 0 | W33: =IF($B35,0,W34-IF(ISNUMBER(V34),V34,0)) -> 0 | AC33: =IF($B35,0,AC34-IF(ISNUMBER(AB34),AB34,0)) -> 0
O34: Acumulado (%) | P34: =MIN(IF($B35,P33+IF(ISNUMBER(O34),O34,0),P35/$N33),1) -> 0.196497695 | Q34: =MIN(IF($B35,Q33+IF(ISNUMBER(P34),P34,0),Q35/$N33),1) -> 1 | R34: =MIN(IF($B35,R33+IF(ISNUMBER(Q34),Q34,0),R35/$N33),1) -> 1 | S34: =MIN(IF($B35,S33+IF(ISNUMBER(R34),R34,0),S35/$N33),1) -> 1 | T34: =MIN(IF($B35,T33+IF(ISNUMBER(S34),S34,0),T35/$N33),1) -> 1 | U34: =MIN(IF($B35,U33+IF(ISNUMBER(T34),T34,0),U35/$N33),1) -> 1 | V34: =MIN(IF($B35,V33+IF(ISNUMBER(U34),U34,0),V35/$N33),1) -> 1 | W34: =MIN(IF($B35,W33+IF(ISNUMBER(V34),V34,0),W35/$N33),1) -> 1 | AC34: =MIN(IF($B35,AC33+IF(ISNUMBER(AB34),AB34,0),AC35/$N33),1) -> 0
A35: =OFFSET(A35,-CFF.NumLinha,0)+1 -> 6 | B35: =$C35>=OFFSET($C35,CFF.NumLinha,0) -> TRUE | C35: =INDEX(PO!A$12:A$41,MATCH($A35,PO!$V$12:$V$41,0)) -> 2 | D35: =IF(ISERROR(J35),I35,SMALL(I35:J35,1))-1 -> 2 | E35: =IF($C35=1,OFFSET(E35,-CFF.NumLinha,0)+1,OFFSET(E35,-CFF.NumLinha,0)) -> 1 | F35: =IF($C35=1,0,IF($C35=2,OFFSET(F35,-CFF.NumLinha,0)+1,OFFSET(F35,-CFF.NumLinha,0))) -> 5 | G35: =IF(AND($C35<=2,$C35<>0),0,IF($C35=3,OFFSET(G35,-CFF.NumLinha,0)+1,OFFSET(G35,-CFF.NumLinha,0))) -> 0 | H35: =IF(AND($C35<=3,$C35<>0),0,IF($C35=4,OFFSET(H35,-CFF.NumLinha,0)+1,OFFSET(H35,-CFF.NumLinha,0))) -> 0 | I35: =MATCH(0,OFFSET($D35,1,$C35,ROW($A$45)-ROW($A35)),0) -> 10 | J35: =MATCH(OFFSET($D35,0,$C35)+1,OFFSET($D35,1,$C35,ROW($A$45)-ROW($A35)),0) -> 3 | K35: =ROUND(INDEX(PO!T$12:T$41,MATCH($A35,PO!$V$12:$V$41,0)),2)+10^-12 -> 157215.89 | O35: Acumulado (R$) | P35: =IF($B35,ROUND(P34*$N33,2),ROUND(SUMIF(OFFSET($B35,1,0,$D35),TRUE,OFFSET(P35,1,0,$D35))/SUMIF(OFFSET($B35,1,0,$D35),TRUE,OFFSET($K35,1,0,$D35))*$N33,2)) -> 30892.56 | Q35: 157215.89 | R35: 157215.89 | S35: 157215.89 | T35: 157215.89 | U35: 157215.89 | V35: 157215.89 | W35: 157215.89 | AC35: =IF($B35,ROUND(AC34*$N33,2),ROUND(SUMIF(OFFSET($B35,1,0,$D35),TRUE,OFFSET(AC35,1,0,$D35))/SUMIF(OFFSET($B35,1,0,$D35),TRUE,OFFSET($K35,1,0,$D35))*$N33,2)) -> 0
L36: =INDEX(PO!K$12:K$41,MATCH($A38,PO!$V$12:$V$41,0)) -> 1.6. | M36: =INDEX(PO!N$12:N$41,MATCH($A38,PO!$V$12:$V$41,0)) -> MEIO-FIO/SARJETAS | N36: =IF(ROUND(K38,2)=0,K38,ROUND(K38,2)) -> 27892.2 | O36: Parcela (%) | P36: =IF($B38,0,P37-IF(ISNUMBER(O37),O37,0)) -> 0 | Q36: 1 | S36: =IF($B38,0,S37-IF(ISNUMBER(R37),R37,0)) -> 0 | T36: =IF($B38,0,T37-IF(ISNUMBER(S37),S37,0)) -> 0 | U36: =IF($B38,0,U37-IF(ISNUMBER(T37),T37,0)) -> 0 | V36: =IF($B38,0,V37-IF(ISNUMBER(U37),U37,0)) -> 0 | W36: =IF($B38,0,W37-IF(ISNUMBER(V37),V37,0)) -> 0 | AC36: =IF($B38,0,AC37-IF(ISNUMBER(AB37),AB37,0)) -> 0
O37: Acumulado (%) | P37: =MIN(IF($B38,P36+IF(ISNUMBER(O37),O37,0),P38/$N36),1) -> 0 | Q37: =MIN(IF($B38,Q36+IF(ISNUMBER(P37),P37,0),Q38/$N36),1) -> 1 | R37: =MIN(IF($B38,R36+IF(ISNUMBER(Q37),Q37,0),R38/$N36),1) -> 1 | S37: =MIN(IF($B38,S36+IF(ISNUMBER(R37),R37,0),S38/$N36),1) -> 1 | T37: =MIN(IF($B38,T36+IF(ISNUMBER(S37),S37,0),T38/$N36),1) -> 1 | U37: =MIN(IF($B38,U36+IF(ISNUMBER(T37),T37,0),U38/$N36),1) -> 1 | V37: =MIN(IF($B38,V36+IF(ISNUMBER(U37),U37,0),V38/$N36),1) -> 1 | W37: =MIN(IF($B38,W36+IF(ISNUMBER(V37),V37,0),W38/$N36),1) -> 1 | AC37: =MIN(IF($B38,AC36+IF(ISNUMBER(AB37),AB37,0),AC38/$N36),1) -> 0
A38: =OFFSET(A38,-CFF.NumLinha,0)+1 -> 7 | B38: =$C38>=OFFSET($C38,CFF.NumLinha,0) -> TRUE | C38: =INDEX(PO!A$12:A$41,MATCH($A38,PO!$V$12:$V$41,0)) -> 2 | D38: =IF(ISERROR(J38),I38,SMALL(I38:J38,1))-1 -> 2 | E38: =IF($C38=1,OFFSET(E38,-CFF.NumLinha,0)+1,OFFSET(E38,-CFF.NumLinha,0)) -> 1 | F38: =IF($C38=1,0,IF($C38=2,OFFSET(F38,-CFF.NumLinha,0)+1,OFFSET(F38,-CFF.NumLinha,0))) -> 6 | G38: =IF(AND($C38<=2,$C38<>0),0,IF($C38=3,OFFSET(G38,-CFF.NumLinha,0)+1,OFFSET(G38,-CFF.NumLinha,0))) -> 0 | H38: =IF(AND($C38<=3,$C38<>0),0,IF($C38=4,OFFSET(H38,-CFF.NumLinha,0)+1,OFFSET(H38,-CFF.NumLinha,0))) -> 0 | I38: =MATCH(0,OFFSET($D38,1,$C38,ROW($A$45)-ROW($A38)),0) -> 7 | J38: =MATCH(OFFSET($D38,0,$C38)+1,OFFSET($D38,1,$C38,ROW($A$45)-ROW($A38)),0) -> 3 | K38: =ROUND(INDEX(PO!T$12:T$41,MATCH($A38,PO!$V$12:$V$41,0)),2)+10^-12 -> 27892.2 | O38: Acumulado (R$) | P38: =IF($B38,ROUND(P37*$N36,2),ROUND(SUMIF(OFFSET($B38,1,0,$D38),TRUE,OFFSET(P38,1,0,$D38))/SUMIF(OFFSET($B38,1,0,$D38),TRUE,OFFSET($K38,1,0,$D38))*$N36,2)) -> 0 | Q38: 27892.2 | R38: 27892.2 | S38: 27892.2 | T38: 27892.2 | U38: 27892.2 | V38: 27892.2 | W38: 27892.2 | AC38: =IF($B38,ROUND(AC37*$N36,2),ROUND(SUMIF(OFFSET($B38,1,0,$D38),TRUE,OFFSET(AC38,1,0,$D38))/SUMIF(OFFSET($B38,1,0,$D38),TRUE,OFFSET($K38,1,0,$D38))*$N36,2)) -> 0
L39: =INDEX(PO!K$12:K$41,MATCH($A41,PO!$V$12:$V$41,0)) -> 1.7. | M39: =INDEX(PO!N$12:N$41,MATCH($A41,PO!$V$12:$V$41,0)) -> CALÇADAS/REBAIXAMENTOS | N39: =IF(ROUND(K41,2)=0,K41,ROUND(K41,2)) -> 33292.27 | O39: Parcela (%) | P39: =IF($B41,0,P40-IF(ISNUMBER(O40),O40,0)) -> 0 | Q39: 0 | R39: 1 | S39: =IF($B41,0,S40-IF(ISNUMBER(R40),R40,0)) -> 0 | T39: =IF($B41,0,T40-IF(ISNUMBER(S40),S40,0)) -> 0 | U39: =IF($B41,0,U40-IF(ISNUMBER(T40),T40,0)) -> 0 | V39: =IF($B41,0,V40-IF(ISNUMBER(U40),U40,0)) -> 0 | W39: =IF($B41,0,W40-IF(ISNUMBER(V40),V40,0)) -> 0 | AC39: =IF($B41,0,AC40-IF(ISNUMBER(AB40),AB40,0)) -> 0
O40: Acumulado (%) | P40: =MIN(IF($B41,P39+IF(ISNUMBER(O40),O40,0),P41/$N39),1) -> 0 | Q40: =MIN(IF($B41,Q39+IF(ISNUMBER(P40),P40,0),Q41/$N39),1) -> 0 | R40: =MIN(IF($B41,R39+IF(ISNUMBER(Q40),Q40,0),R41/$N39),1) -> 1 | S40: =MIN(IF($B41,S39+IF(ISNUMBER(R40),R40,0),S41/$N39),1) -> 1 | T40: =MIN(IF($B41,T39+IF(ISNUMBER(S40),S40,0),T41/$N39),1) -> 1 | U40: =MIN(IF($B41,U39+IF(ISNUMBER(T40),T40,0),U41/$N39),1) -> 1 | V40: =MIN(IF($B41,V39+IF(ISNUMBER(U40),U40,0),V41/$N39),1) -> 1 | W40: =MIN(IF($B41,W39+IF(ISNUMBER(V40),V40,0),W41/$N39),1) -> 1 | AC40: =MIN(IF($B41,AC39+IF(ISNUMBER(AB40),AB40,0),AC41/$N39),1) -> 0
A41: =OFFSET(A41,-CFF.NumLinha,0)+1 -> 8 | B41: =$C41>=OFFSET($C41,CFF.NumLinha,0) -> TRUE | C41: =INDEX(PO!A$12:A$41,MATCH($A41,PO!$V$12:$V$41,0)) -> 2 | D41: =IF(ISERROR(J41),I41,SMALL(I41:J41,1))-1 -> 2 | E41: =IF($C41=1,OFFSET(E41,-CFF.NumLinha,0)+1,OFFSET(E41,-CFF.NumLinha,0)) -> 1 | F41: =IF($C41=1,0,IF($C41=2,OFFSET(F41,-CFF.NumLinha,0)+1,OFFSET(F41,-CFF.NumLinha,0))) -> 7 | G41: =IF(AND($C41<=2,$C41<>0),0,IF($C41=3,OFFSET(G41,-CFF.NumLinha,0)+1,OFFSET(G41,-CFF.NumLinha,0))) -> 0 | H41: =IF(AND($C41<=3,$C41<>0),0,IF($C41=4,OFFSET(H41,-CFF.NumLinha,0)+1,OFFSET(H41,-CFF.NumLinha,0))) -> 0 | I41: =MATCH(0,OFFSET($D41,1,$C41,ROW($A$45)-ROW($A41)),0) -> 4 | J41: =MATCH(OFFSET($D41,0,$C41)+1,OFFSET($D41,1,$C41,ROW($A$45)-ROW($A41)),0) -> 3 | K41: =ROUND(INDEX(PO!T$12:T$41,MATCH($A41,PO!$V$12:$V$41,0)),2)+10^-12 -> 33292.27 | O41: Acumulado (R$) | P41: =IF($B41,ROUND(P40*$N39,2),ROUND(SUMIF(OFFSET($B41,1,0,$D41),TRUE,OFFSET(P41,1,0,$D41))/SUMIF(OFFSET($B41,1,0,$D41),TRUE,OFFSET($K41,1,0,$D41))*$N39,2)) -> 0 | Q41: 0 | R41: 33292.27 | S41: 33292.27 | T41: 33292.27 | U41: 33292.27 | V41: 33292.27 | W41: 33292.27 | AC41: =IF($B41,ROUND(AC40*$N39,2),ROUND(SUMIF(OFFSET($B41,1,0,$D41),TRUE,OFFSET(AC41,1,0,$D41))/SUMIF(OFFSET($B41,1,0,$D41),TRUE,OFFSET($K41,1,0,$D41))*$N39,2)) -> 0
L42: =INDEX(PO!K$12:K$41,MATCH($A44,PO!$V$12:$V$41,0)) -> 1.8. | M42: =INDEX(PO!N$12:N$41,MATCH($A44,PO!$V$12:$V$41,0)) -> SINALIZAÇÃO VIÁRIA | N42: =IF(ROUND(K44,2)=0,K44,ROUND(K44,2)) -> 6719.5 | O42: Parcela (%) | P42: =IF($B44,0,P43-IF(ISNUMBER(O43),O43,0)) -> 0 | Q42: =IF($B44,0,Q43-IF(ISNUMBER(P43),P43,0)) -> 0 | R42: 1 | S42: =IF($B44,0,S43-IF(ISNUMBER(R43),R43,0)) -> 0 | T42: =IF($B44,0,T43-IF(ISNUMBER(S43),S43,0)) -> 0 | U42: =IF($B44,0,U43-IF(ISNUMBER(T43),T43,0)) -> 0 | V42: =IF($B44,0,V43-IF(ISNUMBER(U43),U43,0)) -> 0 | W42: =IF($B44,0,W43-IF(ISNUMBER(V43),V43,0)) -> 0 | AC42: =IF($B44,0,AC43-IF(ISNUMBER(AB43),AB43,0)) -> 0
O43: Acumulado (%) | P43: =MIN(IF($B44,P42+IF(ISNUMBER(O43),O43,0),P44/$N42),1) -> 0 | Q43: =MIN(IF($B44,Q42+IF(ISNUMBER(P43),P43,0),Q44/$N42),1) -> 0 | R43: =MIN(IF($B44,R42+IF(ISNUMBER(Q43),Q43,0),R44/$N42),1) -> 1 | S43: =MIN(IF($B44,S42+IF(ISNUMBER(R43),R43,0),S44/$N42),1) -> 1 | T43: =MIN(IF($B44,T42+IF(ISNUMBER(S43),S43,0),T44/$N42),1) -> 1 | U43: =MIN(IF($B44,U42+IF(ISNUMBER(T43),T43,0),U44/$N42),1) -> 1 | V43: =MIN(IF($B44,V42+IF(ISNUMBER(U43),U43,0),V44/$N42),1) -> 1 | W43: =MIN(IF($B44,W42+IF(ISNUMBER(V43),V43,0),W44/$N42),1) -> 1 | AC43: =MIN(IF($B44,AC42+IF(ISNUMBER(AB43),AB43,0),AC44/$N42),1) -> 0
A44: =OFFSET(A44,-CFF.NumLinha,0)+1 -> 9 | B44: =$C44>=OFFSET($C44,CFF.NumLinha,0) -> TRUE | C44: =INDEX(PO!A$12:A$41,MATCH($A44,PO!$V$12:$V$41,0)) -> 2 | D44: =IF(ISERROR(J44),I44,SMALL(I44:J44,1))-1 -> 0 | E44: =IF($C44=1,OFFSET(E44,-CFF.NumLinha,0)+1,OFFSET(E44,-CFF.NumLinha,0)) -> 1 | F44: =IF($C44=1,0,IF($C44=2,OFFSET(F44,-CFF.NumLinha,0)+1,OFFSET(F44,-CFF.NumLinha,0))) -> 8 | G44: =IF(AND($C44<=2,$C44<>0),0,IF($C44=3,OFFSET(G44,-CFF.NumLinha,0)+1,OFFSET(G44,-CFF.NumLinha,0))) -> 0 | H44: =IF(AND($C44<=3,$C44<>0),0,IF($C44=4,OFFSET(H44,-CFF.NumLinha,0)+1,OFFSET(H44,-CFF.NumLinha,0))) -> 0 | I44: =MATCH(0,OFFSET($D44,1,$C44,ROW($A$45)-ROW($A44)),0) -> 1 | J44: =MATCH(OFFSET($D44,0,$C44)+1,OFFSET($D44,1,$C44,ROW($A$45)-ROW($A44)),0) ->  | K44: =ROUND(INDEX(PO!T$12:T$41,MATCH($A44,PO!$V$12:$V$41,0)),2)+10^-12 -> 6719.5 | O44: Acumulado (R$) | P44: =IF($B44,ROUND(P43*$N42,2),ROUND(SUMIF(OFFSET($B44,1,0,$D44),TRUE,OFFSET(P44,1,0,$D44))/SUMIF(OFFSET($B44,1,0,$D44),TRUE,OFFSET($K44,1,0,$D44))*$N42,2)) -> 0 | Q44: =IF($B44,ROUND(Q43*$N42,2),ROUND(SUMIF(OFFSET($B44,1,0,$D44),TRUE,OFFSET(Q44,1,0,$D44))/SUMIF(OFFSET($B44,1,0,$D44),TRUE,OFFSET($K44,1,0,$D44))*$N42,2)) -> 0 | R44: 6719.5 | S44: 6719.5 | T44: 6719.5 | U44: 6719.5 | V44: 6719.5 | W44: 6719.5 | AC44: =IF($B44,ROUND(AC43*$N42,2),ROUND(SUMIF(OFFSET($B44,1,0,$D44),TRUE,OFFSET(AC44,1,0,$D44))/SUMIF(OFFSET($B44,1,0,$D44),TRUE,OFFSET($K44,1,0,$D44))*$N42,2)) -> 0
C45: -1 | E45: 0 | F45: 0 | G45: 0 | H45: 0
L47: =DADOS!I32 -> 0
L48: Local
L50: =PO!K55 -> 2020-05-29
L51: Data
